Workbook

Sheet Indices
A5: HY BMI | G5: BBB Index | M5: BB Index | S5: B Index | Y5: CCC Index
A6: Date | B6: Price | C6: YTW | D6: STW | E6: 10-yr Avg | G6: Date | H6: Price | I6: YTW | J6: STW | K6: 10-yr Avg | M6: Date | N6: Price | O6: YTW | P6: STW | Q6: 10-yr Avg | S6: Date | T6: Price | U6: YTW | V6: STW | W6: 10-yr Avg | Y6: Date | Z6: Price | AA6: YTW | AB6: STW | AC6: 10-yr Avg
S7: 2016-04-01 | T7: =PV(Table35[[#This Row],[YTW]],5,-6.2916,-100) -> 92.49580124 | U7: 0.0818 | V7: 685 | Y7: 2016-04-01 | Z7: =PV(Table2[[#This Row],[YTW]],5,-7.642,-100) -> 65.43141217 | AA7: 0.1893 | AB7: 1776
S8: 2016-03-31 | T8: =PV(Table35[[#This Row],[YTW]],5,-6.2916,-100) -> 92.57137369 | U8: 0.0816 | V8: 686 | Y8: 2016-03-31 | Z8: =PV(Table2[[#This Row],[YTW]],5,-7.642,-100) -> 65.4543168 | AA8: 0.1892 | AB8: 1777
S9: 2016-03-30 | T9: =PV(Table35[[#This Row],[YTW]],5,-6.2916,-100) -> 91.93155853 | U9: 0.0833 | V9: 700 | Y9: 2016-03-30 | Z9: =PV(Table2[[#This Row],[YTW]],5,-7.642,-100) -> 65.84536028 | AA9: 0.1875 | AB9: 1757
S10: 2016-03-29 | T10: =PV(Table35[[#This Row],[YTW]],5,-6.2916,-100) -> 91.40896661 | U10: 0.0847 | V10: 712 | Y10: 2016-03-29 | Z10: =PV(Table2[[#This Row],[YTW]],5,-7.642,-100) -> 65.24856484 | AA10: 0.1901 | AB10: 1779
S11: 2016-03-28 | T11: =PV(Table35[[#This Row],[YTW]],5,-6.2916,-100) -> 91.70711567 | U11: 0.0839 | V11: 697 | Y11: 2016-03-28 | Z11: =PV(Table2[[#This Row],[YTW]],5,-7.642,-100) -> 65.54604388 | AA11: 0.1888 | AB11: 1758
S12: 2016-03-24 | T12: =PV(Table35[[#This Row],[YTW]],5,-6.2916,-100) -> 91.81924785 | U12: 0.0836 | V12: 692 | Y12: 2016-03-24 | Z12: =PV(Table2[[#This Row],[YTW]],5,-7.642,-100) -> 65.91469567 | AA12: 0.1872 | AB12: 1741
S13: 2016-03-23 | T13: =PV(Table35[[#This Row],[YTW]],5,-6.2916,-100) -> 92.49580124 | U13: 0.0818 | V13: 676 | Y13: 2016-03-23 | Z13: =PV(Table2[[#This Row],[YTW]],5,-7.642,-100) -> 66.42618336 | AA13: 0.185 | AB13: 1721
S14: 2016-03-22 | T14: =PV(Table35[[#This Row],[YTW]],5,-6.2916,-100) -> 92.68488304 | U14: 0.0813 | V14: 666 | Y14: 2016-03-22 | Z14: =PV(Table2[[#This Row],[YTW]],5,-7.642,-100) -> 66.59005395 | AA14: 0.1843 | AB14: 1709
S15: 2016-03-21 | T15: =PV(Table35[[#This Row],[YTW]],5,-6.2916,-100) -> 92.83651063 | U15: 0.0809 | V15: 664 | Y15: 2016-03-21 | Z15: =PV(Table2[[#This Row],[YTW]],5,-7.642,-100) -> 66.66045141 | AA15: 0.184 | AB15: 1708
S16: 2016-03-18 | T16: =PV(Table35[[#This Row],[YTW]],5,-6.2916,-100) -> 92.72275972 | U16: 0.0812 | V16: 671 | Y16: 2016-03-18 | Z16: =PV(Table2[[#This Row],[YTW]],5,-7.642,-100) -> 66.37946328 | AA16: 0.1852 | AB16: 1724
S17: 2016-03-17 | T17: =PV(Table35[[#This Row],[YTW]],5,-6.2916,-100) -> 92.19431283 | U17: 0.0826 | V17: 681 | Y17: 2016-03-17 | Z17: =PV(Table2[[#This Row],[YTW]],5,-7.642,-100) -> 65.50015862 | AA17: 0.189 | AB17: 1758
S18: 2016-03-16 | T18: =PV(Table35[[#This Row],[YTW]],5,-6.2916,-100) -> 91.74447325 | U18: 0.0838 | V18: 691 | Y18: 2016-03-16 | Z18: =PV(Table2[[#This Row],[YTW]],5,-7.642,-100) -> 64.9529096 | AA18: 0.1914 | AB18: 1780
S19: 2016-03-15 | T19: =PV(Table35[[#This Row],[YTW]],5,-6.2916,-100) -> 91.96903514 | U19: 0.0832 | V19: 678 | Y19: 2016-03-15 | Z19: =PV(Table2[[#This Row],[YTW]],5,-7.642,-100) -> 64.9075852 | AA19: 0.1916 | AB19: 1775
S20: 2016-03-14 | T20: =PV(Table35[[#This Row],[YTW]],5,-6.2916,-100) -> 92.49580124 | U20: 0.0818 | V20: 664 | Y20: 2016-03-14 | Z20: =PV(Table2[[#This Row],[YTW]],5,-7.642,-100) -> 65.11188277 | AA20: 0.1907 | AB20: 1766
S21: 2016-03-11 | T21: =PV(Table35[[#This Row],[YTW]],5,-6.2916,-100) -> 92.15671672 | U21: 0.0827 | V21: 672 | Y21: 2016-03-11 | Z21: =PV(Table2[[#This Row],[YTW]],5,-7.642,-100) -> 64.52405089 | AA21: 0.1933 | AB21: 1792
S22: 2016-03-10 | T22: =PV(Table35[[#This Row],[YTW]],5,-6.2916,-100) -> 91.48338545 | U22: 0.0845 | V22: 693 | Y22: 2016-03-10 | Z22: =PV(Table2[[#This Row],[YTW]],5,-7.642,-100) -> 63.74403202 | AA22: 0.1968 | AB22: 1830
S23: 2016-03-09 | T23: =PV(Table35[[#This Row],[YTW]],5,-6.2916,-100) -> 91.22326396 | U23: 0.0852 | V23: 705 | Y23: 2016-03-09 | Z23: =PV(Table2[[#This Row],[YTW]],5,-7.642,-100) -> 63.43560199 | AA23: 0.1982 | AB23: 1848
S24: 2016-03-08 | T24: =PV(Table35[[#This Row],[YTW]],5,-6.2916,-100) -> 91.33462655 | U24: 0.0849 | V24: 706 | Y24: 2016-03-08 | Z24: =PV(Table2[[#This Row],[YTW]],5,-7.642,-100) -> 65.11188277 | AA24: 0.1907 | AB24: 1980
S25: 2016-03-07 | T25: =PV(Table35[[#This Row],[YTW]],5,-6.2916,-100) -> 91.52062445 | U25: 0.0844 | V25: 696 | Y25: 2016-03-07 | Z25: =PV(AA25,5,-7.642,-100) -> 63.39170584 | AA25: 0.1984 | AB25: 1849
S26: 2016-03-04 | T26: =PV(U26,5,-6.2916,-100) -> 92.49580124 | U26: 0.0818 | V26: 701 | Y26: 2016-03-04 | Z26: =PV(AA26,5,-7.642,-100) -> 63.04201517 | AA26: 0.2 | AB26: 1867
S27: 2016-03-03 | T27: =PV(U27,5,-6.2916,-100) -> 91.96903514 | U27: 0.0832 | V27: 722 | Y27: 2016-03-03 | Z27: =PV(AA27,5,-7.642,-100) -> 62.41484165 | AA27: 0.2029 | AB27: 1901
S28: 2016-03-02 | T28: =PV(U28,5,-6.2916,-100) -> 91.74447325 | U28: 0.0838 | V28: 726 | Y28: 2016-03-02 | Z28: =PV(AA28,5,-7.642,-100) -> 62.0298159 | AA28: 0.2047 | AB28: 1917
S29: 2016-03-01 | T29: =PV(U29,5,-6.2916,-100) -> 92.19431283 | U29: 0.0826 | V29: 745 | Y29: 2016-03-01 | Z29: =PV(AA29,5,-7.642,-100) -> 61.62689156 | AA29: 0.2066 | AB29: 1939
S30: 2016-02-29 | T30: =PV(U30,5,-6.2916,-100) -> 92.72275972 | U30: 0.0812 | V30: 772 | Y30: 2016-02-29 | Z30: =PV(AA30,5,-7.642,-100) -> 60.93548784 | AA30: 0.2099 | AB30: 1980
S31: 2016-02-26 | T31: =PV(U31,5,-6.2916,-100) -> 92.83651063 | U31: 0.0809 | V31: 796 | Y31: 2016-02-26 | Z31: =PV(AA31,5,-7.642,-100) -> 62.00852027 | AA31: 0.2048 | AB31: 1932
S32: 2016-02-25 | T32: =PV(U32,5,-6.2916,-100) -> 92.68488304 | U32: 0.0813 | V32: 828 | Y32: 2016-02-25 | Z32: =PV(AA32,5,-7.642,-100) -> 61.29034082 | AA32: 0.2082 | AB32: 1975
S33: 2016-02-24 | T33: =PV(U33,5,-6.2916,-100) -> 92.49580124 | U33: 0.0818 | V33: 839 | Y33: 2016-02-24 | Z33: =PV(AA33,5,-7.642,-100) -> 60.87315697 | AA33: 0.2102 | AB33: 1991
S34: 2016-02-23 | T34: =PV(U34,5,-6.2916,-100) -> 91.81924785 | U34: 0.0836 | V34: 830 | Y34: 2016-02-23 | Z34: =PV(AA34,5,-7.642,-100) -> 61.08126451 | AA34: 0.2092 | AB34: 1980
S35: 2016-02-22 | T35: =PV(U35,5,-6.2916,-100) -> 91.70711567 | U35: 0.0839 | V35: 827 | Y35: 2016-02-22 | Z35: =PV(AA35,5,-7.642,-100) -> 61.22751588 | AA35: 0.2085 | AB35: 1972
S36: 2016-02-19 | T36: =PV(U36,5,-6.2916,-100) -> 91.40896661 | U36: 0.0847 | V36: 841 | Y36: 2016-02-19 | Z36: =PV(AA36,5,-7.642,-100) -> 61.01873077 | AA36: 0.2095 | AB36: 1983
S37: 2016-02-18 | T37: =PV(U37,5,-6.2916,-100) -> 91.93155853 | U37: 0.0833 | V37: 834 | Y37: 2016-02-18 | Z37: =PV(AA37,5,-7.642,-100) -> 61.16477848 | AA37: 0.2088 | AB37: 1977
S38: 2016-02-17 | T38: =PV(U38,5,-6.2916,-100) -> 92.57137369 | U38: 0.0816 | V38: 837 | Y38: 2016-02-17 | Z38: =PV(AA38,5,-7.642,-100) -> 61.06041025 | AA38: 0.2093 | AB38: 1977
S39: 2016-02-16 | T39: =PV(U39,5,-6.2916,-100) -> 92.49580124 | U39: 0.0818 | V39: 860 | Y39: 2016-02-16 | Z39: =PV(AA39,5,-7.642,-100) -> 60.56280029 | AA39: 0.2117 | AB39: 2005
S40: 2016-02-15 | T40: =PV(U40,5,-6.2916,-100) -> 92.72275972 | U40: 0.0812 | V40: 873 | Y40: 2016-02-15 | Z40: =PV(AA40,5,-7.642,-100) -> 60.41870386 | AA40: 0.2124 | AB40: 2014
S41: 2016-02-12 | T41: =PV(U41,5,-6.2916,-100) -> 92.53357743 | U41: 0.0817 | V41: 876 | Y41: 2016-02-12 | Z41: =PV(AA41,5,-7.642,-100) -> 59.80640651 | AA41: 0.2154 | AB41: 2044
S42: 2016-02-11 | T42: =PV(U42,5,-6.2916,-100) -> 92.91244542 | U42: 0.0807 | V42: 900 | Y42: 2016-02-11 | Z42: =PV(AA42,5,-7.642,-100) -> 59.52355859 | AA42: 0.2168 | AB42: 2066
S43: 2016-02-10 | T43: =PV(U43,5,-6.2916,-100) -> 92.87446793 | U43: 0.0808 | V43: 866 | Y43: 2016-02-10 | Z43: =PV(AA43,5,-7.642,-100) -> 60.70736482 | AA43: 0.211 | AB43: 2003
S44: 2016-02-09 | T44: =PV(U44,5,-6.2916,-100) -> 85.83937705 | U44: 0.1003 | V44: 878 | Y44: 2016-02-09 | Z44: =PV(AA44,5,-7.642,-100) -> 60.54218647 | AA44: 0.2118 | AB44: 2010
S45: 2016-02-08 | T45: =PV(U45,5,-6.2916,-100) -> 86.21735265 | U45: 0.0992 | V45: 868 | Y45: 2016-02-08 | Z45: =PV(AA45,5,-7.642,-100) -> 61.1230021 | AA45: 0.209 | AB45: 1983
S46: 2016-02-05 | T46: =PV(U46,5,-6.2916,-100) -> 87.36439591 | U46: 0.0959 | V46: 826 | Y46: 2016-02-05 | Z46: =PV(AA46,5,-7.642,-100) -> 62.65173392 | AA46: 0.2018 | AB46: 1925
S47: 2016-02-04 | T47: =PV(U47,5,-6.2916,-100) -> 87.64546215 | U47: 0.0951 | V47: 817 | Y47: 2016-02-04 | Z47: =PV(AA47,5,-7.642,-100) -> 62.97673965 | AA47: 0.2003 | AB47: 1903
S48: 2016-02-03 | T48: =PV(U48,5,-6.2916,-100) -> 87.53992425 | U48: 0.0954 | V48: 818 | Y48: 2016-02-03 | Z48: =PV(AA48,5,-7.642,-100) -> 63.12919206 | AA48: 0.1996 | AB48: 1885
S49: 2016-02-02 | T49: =PV(U49,5,-6.2916,-100) -> 87.7864377 | U49: 0.0947 | V49: 811 | Y49: 2016-02-02 | Z49: =PV(AA49,5,-7.642,-100) -> 63.21653255 | AA49: 0.1992 | AB49: 1878
S50: 2016-02-01 | T50: =PV(U50,5,-6.2916,-100) -> 88.24665591 | U50: 0.0934 | V50: 788 | Y50: 2016-02-01 | Z50: =PV(AA50,5,-7.642,-100) -> 63.30403702 | AA50: 0.1988 | AB50: 1865
S51: 2016-01-29 | T51: =PV(U51,5,-6.2916,-100) -> 87.8570364 | U51: 0.0945 | V51: 787 | Y51: 2016-01-29 | Z51: =PV(AA51,5,-7.642,-100) -> 64.56901304 | AA51: 0.1931 | AB51: 1863
S52: 2016-01-28 | T52: =PV(U52,5,-6.2916,-100) -> 88.46012567 | U52: 0.0928 | V52: 803 | Y52: 2016-01-28 | Z52: =PV(AA52,5,-7.642,-100) -> 64.52405089 | AA52: 0.1933 | AB52: 1807
S53: 2016-01-27 | T53: =PV(U53,5,-6.2916,-100) -> 87.46965775 | U53: 0.0956 | V53: 804 | Y53: 2016-01-27 | Z53: =PV(AA53,5,-7.642,-100) -> 64.43425369 | AA53: 0.1937 | AB53: 1805
S54: 2016-01-26 | T54: =PV(U54,5,-6.2916,-100) -> 87.29431316 | U54: 0.0961 | V54: 812 | Y54: 2016-01-26 | Z54: =PV(AA54,5,-7.642,-100) -> 64.36701683 | AA54: 0.194 | AB54: 1807
S55: 2016-01-25 | T55: =PV(U55,5,-6.2916,-100) -> 87.08450459 | U55: 0.0967 | V55: 815 | Y55: 2016-01-25 | Z55: =PV(AA55,5,-7.642,-100) -> 64.14357911 | AA55: 0.195 | AB55: 1814
S56: 2016-01-22 | T56: =PV(U56,5,-6.2916,-100) -> 86.87535361 | U56: 0.0973 | V56: 819 | Y56: 2016-01-22 | Z56: =PV(AA56,5,-7.642,-100) -> 64.16587556 | AA56: 0.1949 | AB56: 1812
S57: 2016-01-21 | T57: =PV(U57,5,-6.2916,-100) -> 85.97657188 | U57: 0.0999 | V57: 848 | Y57: 2016-01-21 | Z57: =PV(AA57,5,-7.642,-100) -> 63.61159934 | AA57: 0.1974 | AB57: 1842
S58: 2016-01-20 | T58: =PV(U58,5,-6.2916,-100) -> 85.56584403 | U58: 0.1011 | V58: 863 | Y58: 2016-01-20 | Z58: =PV(AA58,5,-7.642,-100) -> 63.52351802 | AA58: 0.1978 | AB58: 1846
S59: 2016-01-19 | T59: =PV(U59,5,-6.2916,-100) -> 86.87535361 | U59: 0.0973 | V59: 819 | Y59: 2016-01-19 | Z59: =PV(AA59,5,-7.642,-100) -> 64.63653586 | AA59: 0.1928 | AB59: 1791
S60: 2016-01-18 | T60: =PV(U60,5,-6.2916,-100) -> 86.94499769 | U60: 0.0971 | V60: 818 | Y60: 2016-01-18 | Z60: =PV(AA60,5,-7.642,-100) -> 64.72671509 | AA60: 0.1924 | AB60: 1788
S61: 2016-01-15 | T61: =PV(U61,5,-6.2916,-100) -> 86.97984705 | U61: 0.097 | V61: 785 | Y61: 2016-01-15 | Z61: =PV(AA61,5,-7.642,-100) -> 64.79446133 | AA61: 0.1921 | AB61: 1786
S62: 2016-01-14 | T62: =PV(U62,5,-6.2916,-100) -> 87.92770919 | U62: 0.0943 | V62: 785 | Y62: 2016-01-14 | Z62: =PV(AA62,5,-7.642,-100) -> 65.8222704 | AA62: 0.1876 | AB62: 1735
S63: 2016-01-13 | T63: =PV(U63,5,-6.2916,-100) -> 88.28218752 | U63: 0.0933 | V63: 775 | Y63: 2016-01-13 | Z63: =PV(AA63,5,-7.642,-100) -> 65.79919147 | AA63: 0.1877 | AB63: 1736
S64: 2016-01-12 | T64: =PV(U64,5,-6.2916,-100) -> 88.67426925 | U64: 0.0922 | V64: 761 | Y64: 2016-01-12 | Z64: =PV(AA64,5,-7.642,-100) -> 66.00729649 | AA64: 0.1868 | AB64: 1724
S65: 2016-01-11 | T65: =PV(U65,5,-6.2916,-100) -> 88.81740724 | U65: 0.0918 | V65: 753 | Y65: 2016-01-11 | Z65: =PV(AA65,5,-7.642,-100) -> 66.14652774 | AA65: 0.1862 | AB65: 1715
S66: 2016-01-08 | T66: =PV(U66,5,-6.2916,-100) -> 89.14057074 | U66: 0.0909 | V66: 744 | Y66: 2016-01-08 | Z66: =PV(AA66,5,-7.642,-100) -> 66.47294788 | AA66: 0.1848 | AB66: 1700
S67: 2016-01-07 | T67: =PV(U67,5,-6.2916,-100) -> 88.99675361 | U67: 0.0913 | V67: 745 | Y67: 2016-01-07 | Z67: =PV(AA67,5,-7.642,-100) -> 66.33278759 | AA67: 0.1854 | AB67: 1703
S68: 2016-01-06 | T68: =PV(U68,5,-6.2916,-100) -> 89.39298042 | U68: 0.0902 | V68: 731 | Y68: 2016-01-06 | Z68: =PV(AA68,5,-7.642,-100) -> 66.73094944 | AA68: 0.1837 | AB68: 1683
S69: 2016-01-05 | T69: =PV(U69,5,-6.2916,-100) -> 89.42911495 | U69: 0.0901 | V69: 723 | Y69: 2016-01-05 | Z69: =PV(AA69,5,-7.642,-100) -> 66.82510355 | AA69: 0.1833 | AB69: 1673
S70: 2016-01-04 | T70: =PV(U70,5,-6.2916,-100) -> 89.10458807 | U70: 0.091 | V70: 733 | Y70: 2016-01-04 | Z70: =PV(AA70,5,-7.642,-100) -> 66.70743891 | AA70: 0.1838 | AB70: 1677
S71: 2015-12-31 | T71: =PV(U71,5,-6.2916,-100) -> 89.6100734 | U71: 0.0896 | V71: 715 | Y71: 2015-12-31 | Z71: =PV(AA71,5,-7.642,-100) -> 67.25102445 | AA71: 0.1815 | AB71: 1653
S72: 2015-12-30 | T72: =PV(U72,5,-6.2916,-100) -> 90.15581934 | U72: 0.0881 | V72: 698 | Y72: 2015-12-30 | Z72: =PV(AA72,5,-7.642,-100) -> 67.4414993 | AA72: 0.1807 | AB72: 1644
S73: 2015-12-29 | T73: =PV(U73,5,-6.2916,-100) -> 90.04632446 | U73: 0.0884 | V73: 700 | Y73: 2015-12-29 | Z73: =PV(AA73,5,-7.642,-100) -> 67.39381239 | AA73: 0.1809 | AB73: 1643
S74: 2015-12-28 | T74: =PV(U74,5,-6.2916,-100) -> 89.93700275 | U74: 0.0887 | V74: 710 | Y74: 2015-12-28 | Z74: =PV(AA74,5,-7.642,-100) -> 67.20351922 | AA74: 0.1817 | AB74: 1657
S75: 2015-12-25 | T75: =PV(U75,5,-6.2916,-100) -> 89.97342409 | U75: 0.0886 | V75: 708 | Y75: 2015-12-25 | Z75: =PV(AA75,5,-7.642,-100) -> 67.27479406 | AA75: =+AA76 -> 0.1814 | AB75: 1654
S76: 2015-12-24 | T76: =PV(U76,5,-6.2916,-100) -> 89.97342409 | U76: 0.0886 | V76: 708 | Y76: 2015-12-24 | Z76: =PV(AA76,5,-7.642,-100) -> 67.27479406 | AA76: 0.1814 | AB76: 1654
S77: 2015-12-23 | T77: =PV(U77,5,-6.2916,-100) -> 89.9006006 | U77: 0.0888 | V77: 708 | Y77: 2015-12-23 | Z77: =PV(AA77,5,-7.642,-100) -> 67.27479406 | AA77: 0.1814 | AB77: 1654
S78: 2015-12-22 | T78: =PV(U78,5,-6.2916,-100) -> 89.9006006 | U78: 0.0888 | V78: 709 | Y78: 2015-12-22 | Z78: =PV(AA78,5,-7.642,-100) -> 67.01395071 | AA78: 0.1825 | AB78: 1666
S79: 2015-12-21 | T79: =PV(U79,5,-6.2916,-100) -> 89.57384357 | U79: 0.0897 | V79: 720 | Y79: 2015-12-21 | Z79: =PV(AA79,5,-7.642,-100) -> 66.91943717 | AA79: 0.1829 | AB79: 1674
S80: 2015-12-18 | T80: =PV(U80,5,-6.2916,-100) -> 89.39298042 | U80: 0.0902 | V80: 729 | Y80: 2015-12-18 | Z80: =PV(AA80,5,-7.642,-100) -> 67.10864459 | AA80: 0.1821 | AB80: 1665
S81: 2015-12-17 | T81: =PV(U81,5,-6.2916,-100) -> 89.50144114 | U81: 0.0899 | V81: 725 | Y81: 2015-12-17 | Z81: =PV(AA81,5,-7.642,-100) -> 67.6806182 | AA81: 0.1797 | AB81: 1637
S82: 2015-12-16 | T82: =PV(U82,5,-6.2916,-100) -> 90.08280349 | U82: 0.0883 | V82: 705 | Y82: 2015-12-16 | Z82: =PV(AA82,5,-7.642,-100) -> 67.77658609 | AA82: 0.1793 | AB82: 1631
S83: 2015-12-15 | T83: =PV(U83,5,-6.2916,-100) -> 89.75518384 | U83: 0.0892 | V83: 702 | Y83: 2015-12-15 | Z83: =PV(AA83,5,-7.642,-100) -> 67.60876257 | AA83: 0.18 | AB83: 1643
S84: 2015-12-14 | T84: =PV(U84,5,-6.2916,-100) -> 88.8532388 | U84: 0.0917 | V84: 715 | Y84: 2015-12-14 | Z84: =PV(AA84,5,-7.642,-100) -> 67.29857502 | AA84: 0.1813 | AB84: 1659
S85: 2015-12-11 | T85: =PV(U85,5,-6.2916,-100) -> 90.00986466 | U85: 0.0885 | V85: 744 | Y85: 2015-12-11 | Z85: =PV(AA85,5,-7.642,-100) -> 68.40487363 | AA85: 0.1767 | AB85: 1619
S86: 2015-12-10 | T86: =PV(U86,5,-6.2916,-100) -> 91.18618238 | U86: 0.0853 | V86: 719 | Y86: 2015-12-10 | Z86: =PV(AA86,5,-7.642,-100) -> 69.46130964 | AA86: 0.1724 | AB86: 1567
S87: 2015-12-09 | T87: =PV(U87,5,-6.2916,-100) -> 91.37178674 | U87: 0.0848 | V87: 678 | Y87: 2015-12-09 | Z87: =PV(AA87,5,-7.642,-100) -> 69.7350871 | AA87: 0.1713 | AB87: 1560
S88: 2015-12-08 | T88: =PV(U88,5,-6.2916,-100) -> 91.48338545 | U88: 0.0845 | V88: 677 | Y88: 2015-12-08 | Z88: =PV(AA88,5,-7.642,-100) -> 70.03541293 | AA88: 0.1701 | AB88: 1544
S89: 2015-12-07 | T89: =PV(U89,5,-6.2916,-100) -> 92.04404804 | U89: 0.083 | V89: 670 | Y89: 2015-12-07 | Z89: =PV(AA89,5,-7.642,-100) -> 70.74297419 | AA89: 0.1673 | AB89: 1517
S90: 2015-12-04 | T90: =PV(U90,5,-6.2916,-100) -> 92.49580124 | U90: 0.0818 | V90: 655 | Y90: 2015-12-04 | Z90: =PV(AA90,5,-7.642,-100) -> 71.04915894 | AA90: 0.1661 | AB90: 1502
S91: 2015-12-03 | T91: =PV(U91,5,-6.2916,-100) -> 92.68488304 | U91: 0.0813 | V91: 640 | Y91: 2015-12-03 | Z91: =PV(AA91,5,-7.642,-100) -> 70.71753895 | AA91: 0.1674 | AB91: 1512
S92: 2015-12-02 | T92: =PV(U92,5,-6.2916,-100) -> 93.10263613 | U92: 0.0802 | V92: 631 | Y92: 2015-12-02 | Z92: =PV(AA92,5,-7.642,-100) -> 71.02357556 | AA92: 0.1662 | AB92: 1510
S93: 2015-12-01 | T93: =PV(U93,5,-6.2916,-100) -> 92.95044311 | U93: 0.0806 | V93: 639 | Y93: 2015-12-01 | Z93: =PV(AA93,5,-7.642,-100) -> 71.07475471 | AA93: 0.166 | AB93: 1511
S94: 2015-11-30 | T94: =PV(U94,5,-6.2916,-100) -> 92.72275972 | U94: 0.0812 | V94: 639 | Y94: 2015-11-30 | Z94: =PV(AA94,5,-7.642,-100) -> 71.04915894 | AA94: 0.1661 | AB94: 1507
S95: 2015-11-27 | T95: =PV(U95,5,-6.2916,-100) -> 92.04404804 | U95: 0.083 | V95: 660 | Y95: 2015-11-27 | Z95: =PV(AA95,5,-7.642,-100) -> 74.8387713 | AA95: 0.1518 | AB95: 1372
S96: 2015-11-26 | T96: =PV(U96,5,-6.2916,-100) -> 92.08158434 | U96: 0.0829 | V96: 659 | Y96: 2015-11-26 | Z96: =PV(AA96,5,-7.642,-100) -> 74.67438666 | AA96: 0.1524 | AB96: 1374
S97: 2015-11-25 | T97: =PV(U97,5,-6.2916,-100) -> 92.08158434 | U97: 0.0829 | V97: 659 | Y97: 2015-11-25 | Z97: =PV(AA97,5,-7.642,-100) -> 74.67438666 | AA97: 0.1524 | AB97: 1373
S98: 2015-11-24 | T98: =PV(U98,5,-6.2916,-100) -> 91.89410178 | U98: 0.0834 | V98: 664 | Y98: 2015-11-24 | Z98: =PV(AA98,5,-7.642,-100) -> 74.81134022 | AA98: 0.1519 | AB98: 1369
S99: 2015-11-23 | T99: =PV(U99,5,-6.2916,-100) -> 92.08158434 | U99: 0.0829 | V99: 658 | Y99: 2015-11-23 | Z99: =PV(AA99,5,-7.642,-100) -> 75.08625839 | AA99: 0.1509 | AB99: 1357
S100: 2015-11-20 | T100: =PV(U100,5,-6.2916,-100) -> 92.23192889 | U100: 0.0825 | V100: 653 | Y100: 2015-11-20 | Z100: =PV(AA100,5,-7.642,-100) -> 75.19660452 | AA100: 0.1505 | AB100: 1352
S101: 2015-11-19 | T101: =PV(U101,5,-6.2916,-100) -> 92.45804511 | U101: 0.0819 | V101: 649 | Y101: 2015-11-19 | Z101: =PV(AA101,5,-7.642,-100) -> 75.64016689 | AA101: 0.1489 | AB101: 1338
S102: 2015-11-18 | T102: =PV(U102,5,-6.2916,-100) -> 92.76065653 | U102: 0.0811 | V102: 640 | Y102: 2015-11-18 | Z102: =PV(AA102,5,-7.642,-100) -> 76.05919317 | AA102: 0.1474 | AB102: 1322
S103: 2015-11-17 | T103: =PV(U103,5,-6.2916,-100) -> 92.7985735 | U103: 0.081 | V103: 639 | Y103: 2015-11-17 | Z103: =PV(AA103,5,-7.642,-100) -> 76.22767346 | AA103: 0.1468 | AB103: 1315
S104: 2015-11-16 | T104: =PV(U104,5,-6.2916,-100) -> 92.42030903 | U104: 0.082 | V104: 649 | Y104: 2015-11-16 | Z104: =PV(AA104,5,-7.642,-100) -> 76.17145793 | AA104: 0.147 | AB104: 1319
S105: 2015-11-13 | T105: =PV(U105,5,-6.2916,-100) -> 92.45804511 | U105: 0.0819 | V105: 645 | Y105: 2015-11-13 | Z105: =PV(AA105,5,-7.642,-100) -> 76.22767346 | AA105: 0.1468 | AB105: 1313
S106: 2015-11-12 | T106: =PV(U106,5,-6.2916,-100) -> 92.83651063 | U106: 0.0809 | V106: 632 | Y106: 2015-11-12 | Z106: =PV(AA106,5,-7.642,-100) -> 76.67940192 | AA106: 0.1452 | AB106: 1294
S107: 2015-11-11 | T107: =PV(U107,5,-6.2916,-100) -> 93.33153385 | U107: 0.0796 | V107: 620 | Y107: 2015-11-11 | Z107: =PV(AA107,5,-7.642,-100) -> 77.13471752 | AA107: 0.1436 | AB107: 1278
S108: 2015-11-10 | T108: =PV(U108,5,-6.2916,-100) -> 93.33153385 | U108: 0.0796 | V108: 620 | Y108: 2015-11-10 | Z108: =PV(AA108,5,-7.642,-100) -> 77.16329463 | AA108: 0.1435 | AB108: 1278
S109: 2015-11-09 | T109: =PV(U109,5,-6.2916,-100) -> 93.52284123 | U109: 0.0791 | V109: 611 | Y109: 2015-11-09 | Z109: =PV(AA109,5,-7.642,-100) -> 77.2777447 | AA109: 0.1431 | AB109: 1269
S110: 2015-11-06 | T110: =PV(U110,5,-6.2916,-100) -> 93.98406349 | U110: 0.0779 | V110: 600 | Y110: 2015-11-06 | Z110: =PV(AA110,5,-7.642,-100) -> 77.82449187 | AA110: 0.1412 | AB110: 1251
S111: 2015-11-05 | T111: =PV(U111,5,-6.2916,-100) -> 94.3706763 | U111: 0.0769 | V111: 599 | Y111: 2015-11-05 | Z111: =PV(AA111,5,-7.642,-100) -> 78.14339364 | AA111: 0.1401 | AB111: 1248
S112: 2015-11-04 | T112: =PV(U112,5,-6.2916,-100) -> 94.75935848 | U112: 0.0759 | V112: 590 | Y112: 2015-11-04 | Z112: =PV(AA112,5,-7.642,-100) -> 78.66900805 | AA112: 0.1383 | AB112: 1231
S113: 2015-11-03 | T113: =PV(U113,5,-6.2916,-100) -> 94.75935848 | U113: 0.0759 | V113: 593 | Y113: 2015-11-03 | Z113: =PV(AA113,5,-7.642,-100) -> 78.49328015 | AA113: 0.1389 | AB113: 1240
S114: 2015-11-02 | T114: =PV(U114,5,-6.2916,-100) -> 94.60363644 | U114: 0.0763 | V114: 600 | Y114: 2015-11-02 | Z114: =PV(AA114,5,-7.642,-100) -> 78.40561271 | AA114: 0.1392 | AB114: 1246
S115: 2015-10-30 | T115: =PV(U115,5,-6.2916,-100) -> 94.40945118 | U115: 0.0768 | V115: 610 | Y115: 2015-10-30 | Z115: =PV(AA115,5,-7.642,-100) -> 78.72770072 | AA115: 0.1381 | AB115: 1240
S116: 2015-10-29 | T116: =PV(U116,5,-6.2916,-100) -> 94.3706763 | U116: 0.0769 | V116: 610 | Y116: 2015-10-29 | Z116: =PV(AA116,5,-7.642,-100) -> 78.58107852 | AA116: 0.1386 | AB116: 1243
S117: 2015-10-28 | T117: =PV(U117,5,-6.2916,-100) -> 94.33192211 | U117: 0.077 | V117: 616 | Y117: 2015-10-28 | Z117: =PV(AA117,5,-7.642,-100) -> 77.96923129 | AA117: 0.1407 | AB117: 1269
S118: 2015-10-27 | T118: =PV(U118,5,-6.2916,-100) -> 94.09983083 | U118: 0.0776 | V118: 631 | Y118: 2015-10-27 | Z118: =PV(AA118,5,-7.642,-100) -> 78.43482066 | AA118: 0.1391 | AB118: 1263
S119: 2015-10-26 | T119: =PV(U119,5,-6.2916,-100) -> 94.21578359 | U119: 0.0773 | V119: 625 | Y119: 2015-10-26 | Z119: =PV(AA119,5,-7.642,-100) -> 78.66900805 | AA119: 0.1383 | AB119: 1251
S120: 2015-10-23 | T120: =PV(U120,5,-6.2916,-100) -> 94.40945118 | U120: 0.0768 | V120: 618 | Y120: 2015-10-23 | Z120: =PV(AA120,5,-7.642,-100) -> 78.72770072 | AA120: 0.1381 | AB120: 1247
S121: 2015-10-22 | T121: =PV(U121,5,-6.2916,-100) -> 94.06122113 | U121: 0.0777 | V121: 633 | Y121: 2015-10-22 | Z121: =PV(AA121,5,-7.642,-100) -> 78.66900805 | AA121: 0.1383 | AB121: 1256
S122: 2015-10-21 | T122: =PV(U122,5,-6.2916,-100) -> 94.29318861 | U122: 0.0771 | V122: 626 | Y122: 2015-10-21 | Z122: =PV(AA122,5,-7.642,-100) -> 78.63968362 | AA122: 0.1384 | AB122: 1255
S123: 2015-10-20 | T123: =PV(U123,5,-6.2916,-100) -> 94.3706763 | U123: 0.0769 | V123: 626 | Y123: 2015-10-20 | Z123: =PV(AA123,5,-7.642,-100) -> 78.58107852 | AA123: 0.1386 | AB123: 1254
S124: 2015-10-19 | T124: =PV(U124,5,-6.2916,-100) -> 94.09983083 | U124: 0.0776 | V124: 621 | Y124: 2015-10-19 | Z124: =PV(AA124,5,-7.642,-100) -> 78.52253171 | AA124: 0.1388 | AB124: 1261
S125: 2015-10-16 | T125: =PV(U125,5,-6.2916,-100) -> 94.13846113 | U125: 0.0775 | V125: 632 | Y125: 2015-10-16 | Z125: =PV(AA125,5,-7.642,-100) -> 78.66900805 | AA125: 0.1383 | AB125: 1256
S126: 2015-10-15 | T126: =PV(U126,5,-6.2916,-100) -> 93.791529 | U126: 0.0784 | V126: 641 | Y126: 2015-10-15 | Z126: =PV(AA126,5,-7.642,-100) -> 78.46404313 | AA126: 0.139 | AB126: 1265
S127: 2015-10-14 | T127: =PV(U127,5,-6.2916,-100) -> 93.82999485 | U127: 0.0783 | V127: 645 | Y127: 2015-10-14 | Z127: =PV(AA127,5,-7.642,-100) -> 78.40561271 | AA127: 0.1392 | AB127: 1271
S128: 2015-10-13 | T128: =PV(U128,5,-6.2916,-100) -> 93.75308364 | U128: 0.0785 | V128: 639 | Y128: 2015-10-13 | Z128: =PV(AA128,5,-7.642,-100) -> 78.14339364 | AA128: 0.1401 | AB128: 1272
S129: 2015-10-12 | T129: =PV(U129,5,-6.2916,-100) -> 94.13846113 | U129: 0.0775 | V129: 625 | Y129: 2015-10-12 | Z129: =PV(AA129,5,-7.642,-100) -> 78.52253171 | AA129: 0.1388 | AB129: 1254
S130: 2015-10-09 | T130: =PV(U130,5,-6.2916,-100) -> 94.13846113 | U130: 0.0775 | V130: 624 | Y130: 2015-10-09 | Z130: =PV(AA130,5,-7.642,-100) -> 78.55179783 | AA130: 0.1387 | AB130: 1253
S131: 2015-10-08 | T131: =PV(U131,5,-6.2916,-100) -> 93.56116387 | U131: 0.079 | V131: 640 | Y131: 2015-10-08 | Z131: =PV(AA131,5,-7.642,-100) -> 78.05624758 | AA131: 0.1404 | AB131: 1271
S132: 2015-10-07 | T132: =PV(U132,5,-6.2916,-100) -> 93.44625715 | U132: 0.0793 | V132: 647 | Y132: 2015-10-07 | Z132: =PV(AA132,5,-7.642,-100) -> 78.1724712 | AA132: 0.14 | AB132: 1270
S133: 2015-10-06 | T133: =PV(U133,5,-6.2916,-100) -> 92.76065653 | U133: 0.0811 | V133: 667 | Y133: 2015-10-06 | Z133: =PV(AA133,5,-7.642,-100) -> 77.47857888 | AA133: 0.1424 | AB133: 1297
S134: 2015-10-05 | T134: =PV(U134,5,-6.2916,-100) -> 92.34489696 | U134: 0.0822 | V134: 677 | Y134: 2015-10-05 | Z134: =PV(AA134,5,-7.642,-100) -> 77.22049132 | AA134: 0.1433 | AB134: 1305
S135: 2015-10-02 | T135: =PV(U135,5,-6.2916,-100) -> 91.66977789 | U135: 0.084 | V135: 700 | Y135: 2015-10-02 | Z135: =PV(AA135,5,-7.642,-100) -> 76.84972307 | AA135: 0.1446 | AB135: 1323
S136: 2015-10-01 | T136: =PV(U136,5,-6.2916,-100) -> 92.04404804 | U136: 0.083 | V136: 683 | Y136: 2015-10-01 | Z136: =PV(AA136,5,-7.642,-100) -> 77.36373119 | AA136: 0.1428 | AB136: 1298
S137: 2015-09-30 | T137: =PV(U137,5,-6.2916,-100) -> 92.15671672 | U137: 0.0827 | V137: 680 | Y137: 2015-09-30 | Z137: =PV(AA137,5,-7.642,-100) -> 77.53608818 | AA137: 0.1422 | AB137: 1292
S138: 2015-09-29 | T138: =PV(U138,5,-6.2916,-100) -> 92.83651063 | U138: 0.0809 | V138: 671 | Y138: 2015-09-29 | Z138: =PV(AA138,5,-7.642,-100) -> 78.11433052 | AA138: 0.1402 | AB138: 1273
S139: 2015-09-28 | T139: =PV(U139,5,-6.2916,-100) -> 93.94551552 | U139: 0.078 | V139: 660 | Y139: 2015-09-28 | Z139: =PV(AA139,5,-7.642,-100) -> 78.52253171 | AA139: 0.1388 | AB139: 1254
S140: 2015-09-25 | T140: =PV(U140,5,-6.2916,-100) -> 94.13846113 | U140: 0.0775 | V140: 625 | Y140: 2015-09-25 | Z140: =PV(AA140,5,-7.642,-100) -> 79.55556945 | AA140: 0.1353 | AB140: 1214
S141: 2015-09-24 | T141: =PV(U141,5,-6.2916,-100) -> 94.64253576 | U141: 0.0762 | V141: 623 | Y141: 2015-09-24 | Z141: =PV(AA141,5,-7.642,-100) -> 79.70462386 | AA141: 0.1348 | AB141: 1212
S142: 2015-09-23 | T142: =PV(U142,5,-6.2916,-100) -> 94.72039677 | U142: 0.076 | V142: 608 | Y142: 2015-09-23 | Z142: =PV(AA142,5,-7.642,-100) -> 80.33473564 | AA142: 0.1327 | AB142: 1189
S143: 2015-09-22 | T143: =PV(U143,5,-6.2916,-100) -> 95.26776078 | U143: 0.0746 | V143: 608 | Y143: 2015-09-22 | Z143: =PV(AA143,5,-7.642,-100) -> 80.45550927 | AA143: 0.1323 | AB143: 1187
S144: 2015-09-21 | T144: =PV(U144,5,-6.2916,-100) -> 95.38558729 | U144: 0.0743 | V144: 586 | Y144: 2015-09-21 | Z144: =PV(AA144,5,-7.642,-100) -> 81.18525674 | AA144: 0.1299 | AB144: 1156
S145: 2015-09-18 | T145: =PV(U145,5,-6.2916,-100) -> 95.54298393 | U145: 0.0739 | V145: 589 | Y145: 2015-09-18 | Z145: =PV(AA145,5,-7.642,-100) -> 81.36907055 | AA145: 0.1293 | AB145: 1156
S146: 2015-09-17 | T146: =PV(U146,5,-6.2916,-100) -> 95.66125283 | U146: 0.0736 | V146: 579 | Y146: 2015-09-17 | Z146: =PV(AA146,5,-7.642,-100) -> 81.55343912 | AA146: 0.1287 | AB146: 1144
S147: 2015-09-16 | T147: =PV(U147,5,-6.2916,-100) -> 96.0172022 | U147: 0.0727 | V147: 565 | Y147: 2015-09-16 | Z147: =PV(AA147,5,-7.642,-100) -> 81.61501894 | AA147: 0.1285 | AB147: 1131
S148: 2015-09-15 | T148: =PV(U148,5,-6.2916,-100) -> 96.13623409 | U148: 0.0724 | V148: 558 | Y148: 2015-09-15 | Z148: =PV(AA148,5,-7.642,-100) -> 81.76923963 | AA148: 0.128 | AB148: 1128
S149: 2015-09-14 | T149: =PV(U149,5,-6.2916,-100) -> 96.0172022 | U149: 0.0727 | V149: 565 | Y149: 2015-09-14 | Z149: =PV(AA149,5,-7.642,-100) -> 81.83103656 | AA149: 0.1278 | AB149: 1135
S150: 2015-09-11 | T150: =PV(U150,5,-6.2916,-100) -> 95.97756743 | U150: 0.0728 | V150: 567 | Y150: 2015-09-11 | Z150: =PV(AA150,5,-7.642,-100) -> 81.70750482 | AA150: 0.1282 | AB150: 1139
S151: 2015-09-10 | T151: =PV(U151,5,-6.2916,-100) -> 96.17595397 | U151: 0.0723 | V151: 564 | Y151: 2015-09-10 | Z151: =PV(AA151,5,-7.642,-100) -> 81.70750482 | AA151: 0.1282 | AB151: 1135
S152: 2015-09-09 | T152: =PV(U152,5,-6.2916,-100) -> 95.81924063 | U152: 0.0732 | V152: 565 | Y152: 2015-09-09 | Z152: =PV(AA152,5,-7.642,-100) -> 81.64583207 | AA152: 0.1284 | AB152: 1139
S153: 2015-09-08 | T153: =PV(U153,5,-6.2916,-100) -> 95.81924063 | U153: 0.0732 | V153: 562 | Y153: 2015-09-08 | Z153: =PV(AA153,5,-7.642,-100) -> 81.430465 | AA153: 0.1291 | AB153: 1144
S154: 2015-09-07 | T154: =PV(U154,5,-6.2916,-100) -> 95.62180875 | U154: 0.0737 | V154: 568 | Y154: 2015-09-07 | Z154: =PV(AA154,5,-7.642,-100) -> 81.33839644 | AA154: 0.1294 | AB154: 1153
S155: 2015-09-04 | T155: =PV(U155,5,-6.2916,-100) -> 95.62180875 | U155: 0.0737 | V155: 579 | Y155: 2015-09-04 | Z155: =PV(AA155,5,-7.642,-100) -> 81.36907055 | AA155: 0.1293 | AB155: 1152
S156: 2015-09-03 | T156: =PV(U156,5,-6.2916,-100) -> 95.70071805 | U156: 0.0735 | V156: 574 | Y156: 2015-09-03 | Z156: =PV(AA156,5,-7.642,-100) -> 81.36907055 | AA156: 0.1293 | AB156: 1149
S157: 2015-09-02 | T157: =PV(U157,5,-6.2916,-100) -> 95.46424348 | U157: 0.0741 | V157: 578 | Y157: 2015-09-02 | Z157: =PV(AA157,5,-7.642,-100) -> 81.18525674 | AA157: 0.1299 | AB157: 1153
S158: 2015-09-01 | T158: =PV(U158,5,-6.2916,-100) -> 95.38558729 | U158: 0.0743 | V158: 583 | Y158: 2015-09-01 | Z158: =PV(AA158,5,-7.642,-100) -> 81.12410841 | AA158: 0.1301 | AB158: 1158
S159: 2015-08-31 | T159: =PV(U159,5,-6.2916,-100) -> 95.54298393 | U159: 0.0739 | V159: 574 | Y159: 2015-08-20 | Z159: =PV(AA159,5,-7.642,-100) -> 81.61501894 | AA159: 0.1285 | AB159: 1145
S160: 2015-08-28 | T160: =PV(U160,5,-6.2916,-100) -> 95.46424348 | U160: 0.0741 | V160: 579 | Y160: 2015-08-19 | Z160: =PV(AA160,5,-7.642,-100) -> 81.98580118 | AA160: 0.1273 | AB160: 1132
S161: 2015-08-27 | T161: =PV(U161,5,-6.2916,-100) -> 95.26776078 | U161: 0.0746 | V161: 587 | Y161: 2015-08-18 | Z161: =PV(AA161,5,-7.642,-100) -> 82.07884704 | AA161: 0.127 | AB161: 1122
S162: 2015-08-26 | T162: =PV(U162,5,-6.2916,-100) -> 94.83734441 | U162: 0.0757 | V162: 599 | Y162: 2015-08-17 | Z162: =PV(AA162,5,-7.642,-100) -> 81.86195835 | AA162: 0.1277 | AB162: 1131
S163: 2015-08-25 | T163: =PV(U163,5,-6.2916,-100) -> 94.87636864 | U163: 0.0756 | V163: 624 | Y163: 2015-08-14 | Z163: =PV(AA163,5,-7.642,-100) -> 82.26536091 | AA163: 0.1264 | AB163: 1114
S164: 2015-08-24 | T164: =PV(U164,5,-6.2916,-100) -> 94.33192211 | U164: 0.077 | V164: 594 | Y164: 2015-08-13 | Z164: =PV(AA164,5,-7.642,-100) -> 79.67478319 | AA164: 0.1349 | AB164: 1200
S165: 2015-08-21 | T165: =PV(U165,5,-6.2916,-100) -> 95.26776078 | U165: 0.0746 | V165: 582 | Y165: 2015-08-12 | Z165: =PV(AA165,5,-7.642,-100) -> 79.40688664 | AA165: 0.1358 | AB165: 1215
S166: 2015-08-20 | T166: =PV(U166,5,-6.2916,-100) -> 95.54298393 | U166: 0.0739 | V166: 582 | Y166: 2015-08-11 | Z166: =PV(AA166,5,-7.642,-100) -> 79.854051 | AA166: 0.1343 | AB166: 1199
S167: 2015-08-19 | T167: =PV(U167,5,-6.2916,-100) -> 95.81924063 | U167: 0.0732 | V167: 574 | Y167: 2015-08-10 | Z167: =PV(AA167,5,-7.642,-100) -> 80.30457999 | AA167: 0.1328 | AB167: 1175
S168: 2015-08-18 | T168: =PV(U168,5,-6.2916,-100) -> 96.0172022 | U168: 0.0727 | V168: 561 | Y168: 2015-08-07 | Z168: =PV(AA168,5,-7.642,-100) -> 80.4857405 | AA168: 0.1322 | AB168: 1173
S169: 2015-08-17 | T169: =PV(U169,5,-6.2916,-100) -> 96.13623409 | U169: 0.0724 | V169: 561 | Y169: 2015-08-06 | Z169: =PV(AA169,5,-7.642,-100) -> 81.0325009 | AA169: 0.1304 | AB169: 1152
S170: 2015-08-14 | T170: =PV(U170,5,-6.2916,-100) -> 96.17595397 | U170: 0.0723 | V170: 556 | Y170: 2015-08-05 | Z170: =PV(AA170,5,-7.642,-100) -> 81.39976006 | AA170: 0.1292 | AB170: 1138
S171: 2015-08-13 | T171: =PV(U171,5,-6.2916,-100) -> 96.13623409 | U171: 0.0724 | V171: 559 | Y171: 2015-08-04 | Z171: =PV(AA171,5,-7.642,-100) -> 79.97386183 | AA171: 0.1339 | AB171: 1189
S172: 2015-08-12 | T172: =PV(U172,5,-6.2916,-100) -> 95.81924063 | U172: 0.0732 | V172: 573 | Y172: 2015-08-03 | Z172: =PV(AA172,5,-7.642,-100) -> 80.36490638 | AA172: 0.1326 | AB172: 1184
S173: 2015-08-11 | T173: =PV(U173,5,-6.2916,-100) -> 96.25545765 | U173: 0.0721 | V173: 560 | Y173: 2015-07-31 | Z173: =PV(AA173,5,-7.642,-100) -> 80.97150579 | AA173: 0.1306 | AB173: 1161
S174: 2015-08-10 | T174: =PV(U174,5,-6.2916,-100) -> 96.61428199 | U174: 0.0712 | V174: 542 | Y174: 2015-07-30 | Z174: =PV(AA174,5,-7.642,-100) -> 81.80013032 | AA174: 0.1279 | AB174: 1131
S175: 2015-08-07 | T175: =PV(U175,5,-6.2916,-100) -> 96.73427589 | U175: 0.0709 | V175: 544 | Y175: 2015-07-29 | Z175: =PV(AA175,5,-7.642,-100) -> 81.49192116 | AA175: 0.1289 | AB175: 1135
S176: 2015-08-06 | T176: =PV(U176,5,-6.2916,-100) -> 97.09542014 | U176: 0.07 | V176: 531 | Y176: 2015-07-28 | Z176: =PV(AA176,5,-7.642,-100) -> 81.12410841 | AA176: 0.1301 | AB176: 1148
S177: 2015-08-05 | T177: =PV(U177,5,-6.2916,-100) -> 97.41790746 | U177: 0.0692 | V177: 520 | Y177: 2015-07-27 | Z177: =PV(AA177,5,-7.642,-100) -> 80.97150579 | AA177: 0.1306 | AB177: 1155
S178: 2015-08-04 | T178: =PV(U178,5,-6.2916,-100) -> 97.41790746 | U178: 0.0692 | V178: 525 | Y178: 2015-07-24 | Z178: =PV(AA178,5,-7.642,-100) -> 81.89289569 | AA178: 0.1276 | AB178: 1122
S179: 2015-08-03 | T179: =PV(U179,5,-6.2916,-100) -> 97.49874638 | U179: 0.069 | V179: 530 | Y179: 2015-07-23 | Z179: =PV(AA179,5,-7.642,-100) -> 83.68235273 | AA179: 0.1219 | AB179: 1067
S180: 2015-07-31 | T180: =PV(U180,5,-6.2916,-100) -> 97.7012248 | U180: 0.0685 | V180: 522 | Y180: 2015-07-22 | Z180: =PV(AA180,5,-7.642,-100) -> 83.93765349 | AA180: 0.1211 | AB180: 1057
S181: 2015-07-30 | T181: =PV(U181,5,-6.2916,-100) -> 97.41790746 | U181: 0.0692 | V181: 524 | Y181: 2015-07-21 | Z181: =PV(AA181,5,-7.642,-100) -> 84.48361507 | AA181: 0.1194 | AB181: 1039
S182: 2015-07-29 | T182: =PV(U182,5,-6.2916,-100) -> 97.09542014 | U182: 0.07 | V182: 532 | Y182: 2015-07-20 | Z182: =PV(AA182,5,-7.642,-100) -> 84.80697469 | AA182: 0.1184 | AB182: 1026
S183: 2015-07-28 | T183: =PV(U183,5,-6.2916,-100) -> 96.65425848 | U183: 0.0711 | V183: 545 | Y183: 2015-07-17 | Z183: =PV(AA183,5,-7.642,-100) -> 85.13198051 | AA183: 0.1174 | AB183: 1019
S184: 2015-07-27 | T184: =PV(U184,5,-6.2916,-100) -> 96.53439338 | U184: 0.0714 | V184: 550 | Y184: 2015-07-16 | Z184: =PV(AA184,5,-7.642,-100) -> 85.39317718 | AA184: 0.1166 | AB184: 1013
S185: 2015-07-24 | T185: =PV(U185,5,-6.2916,-100) -> 97.01501484 | U185: 0.0702 | V185: 533 | Y185: 2015-07-15 | Z185: =PV(AA185,5,-7.642,-100) -> 85.39317718 | AA185: 0.1166 | AB185: 1015
S186: 2015-07-23 | T186: =PV(U186,5,-6.2916,-100) -> 97.17591194 | U186: 0.0698 | V186: 528 | Y186: 2015-07-14 | Z186: =PV(AA186,5,-7.642,-100) -> 85.39317718 | AA186: 0.1166 | AB186: 1021
S187: 2015-07-22 | T187: =PV(U187,5,-6.2916,-100) -> 97.21619031 | U187: 0.0697 | V187: 523 | Y187: 2015-07-13 | Z187: =PV(AA187,5,-7.642,-100) -> 85.09940556 | AA187: 0.1175 | AB187: 1028
S188: 2015-07-21 | T188: =PV(U188,5,-6.2916,-100) -> 97.7012248 | U188: 0.0685 | V188: 512 | Y188: 2015-07-10 | Z188: =PV(AA188,5,-7.642,-100) -> 84.74217139 | AA188: 0.1186 | AB188: 1028
S189: 2015-07-20 | T189: =PV(U189,5,-6.2916,-100) -> 97.57967236 | U189: 0.0688 | V189: 501 | Y189: 2015-07-09 | Z189: =PV(AA189,5,-7.642,-100) -> 84.74217139 | AA189: 0.1186 | AB189: 1044
S190: 2015-07-17 | T190: =PV(U190,5,-6.2916,-100) -> 97.74178593 | U190: 0.0684 | V190: 499 | Y190: 2015-07-08 | Z190: =PV(AA190,5,-7.642,-100) -> 84.5804507 | AA190: 0.1191 | AB190: 1052
S191: 2015-07-16 | T191: =PV(U191,5,-6.2916,-100) -> 98.02632638 | U191: 0.0677 | V191: 494 | Y191: 2015-07-07 | Z191: =PV(AA191,5,-7.642,-100) -> 84.87184384 | AA191: 0.1182 | AB191: 1039
S192: 2015-07-15 | T192: =PV(U192,5,-6.2916,-100) -> 98.02632638 | U192: 0.0677 | V192: 496 | Y192: 2015-07-06 | Z192: =PV(AA192,5,-7.642,-100) -> 85.09940556 | AA192: 0.1175 | AB192: 1028
S193: 2015-07-14 | T193: =PV(U193,5,-6.2916,-100) -> 98.27107393 | U193: 0.0671 | V193: 496 | Y193: 2015-07-03 | Z193: =PV(AA193,5,-7.642,-100) -> 85.68829691 | AA193: 0.1157 | AB193: 1003
S194: 2015-07-13 | T194: =PV(U194,5,-6.2916,-100) -> 98.14860121 | U194: 0.0674 | V194: 495 | Y194: 2015-07-02 | Z194: =PV(AA194,5,-7.642,-100) -> 85.68829691 | AA194: 0.1157 | AB194: 1003
S195: 2015-07-10 | T195: =PV(U195,5,-6.2916,-100) -> 97.98561202 | U195: 0.0678 | V195: 500 | Y195: 2015-07-01 | Z195: =PV(AA195,5,-7.642,-100) -> 85.62259787 | AA195: 0.1159 | AB195: 999
S196: 2015-07-09 | T196: =PV(U196,5,-6.2916,-100) -> 97.82297375 | U196: 0.0682 | V196: 515 | Y196: 2015-06-30 | Z196: =PV(AA196,5,-7.642,-100) -> 85.29510388 | AA196: 0.1169 | AB196: 1016
S197: 2015-07-08 | T197: =PV(U197,5,-6.2916,-100) -> 97.78236891 | U197: 0.0683 | V197: 524 | Y197: 2015-06-29 | Z197: =PV(AA197,5,-7.642,-100) -> 86.18317914 | AA197: 0.1142 | AB197: 994
S198: 2015-07-07 | T198: =PV(U198,5,-6.2916,-100) -> 97.94491959 | U198: 0.0679 | V198: 516 | Y198: 2015-06-26 | Z198: =PV(AA198,5,-7.642,-100) -> 86.94939122 | AA198: 0.1119 | AB198: 958
S199: 2015-07-06 | T199: =PV(U199,5,-6.2916,-100) -> 98.10782096 | U199: 0.0675 | V199: 509 | Y199: 2015-06-25 | Z199: =PV(AA199,5,-7.642,-100) -> 87.08356686 | AA199: 0.1115 | AB199: 959
S200: 2015-07-03 | T200: =PV(U200,5,-6.2916,-100) -> 98.39374494 | U200: 0.0668 | V200: 493 | Y200: 2015-06-24 | Z200: =PV(AA200,5,-7.642,-100) -> 87.15075766 | AA200: 0.1113 | AB200: 959
S201: 2015-07-02 | T201: =PV(U201,5,-6.2916,-100) -> 98.39374494 | U201: 0.0668 | V201: 493 | Y201: 2015-06-23 | Z201: =PV(AA201,5,-7.642,-100) -> 87.28534565 | AA201: 0.1109 | AB201: 952
S202: 2015-07-01 | T202: =PV(U202,5,-6.2916,-100) -> 98.35283255 | U202: 0.0669 | V202: 489 | Y202: 2015-06-22 | Z202: =PV(AA202,5,-7.642,-100) -> 87.48774484 | AA202: 0.1103 | AB202: 949
S203: 2015-06-30 | T203: =PV(U203,5,-6.2916,-100) -> 98.18940344 | U203: 0.0673 | V203: 500 | Y203: 2015-06-19 | Z203: =PV(AA203,5,-7.642,-100) -> 87.38646755 | AA203: 0.1106 | AB203: 959
S204: 2015-06-29 | T204: =PV(U204,5,-6.2916,-100) -> 98.72183993 | U204: 0.066 | V204: 491 | Y204: 2015-06-18 | Z204: =PV(AA204,5,-7.642,-100) -> 87.3190357 | AA204: 0.1108 | AB204: 956
... 678 more rows

Sheet B Index STW
A1: Title: BofA Merrill Lynch US High Yield B Option-Adjusted SpreadÂ©
A2: Series ID: BAMLH0A2HYB
A3: Source: BofA Merrill Lynch
A4: Release: BofA Merrill Lynch (Not a Press Release)
A5: Seasonal Adjustment: Not Seasonally Adjusted
A6: Frequency: Daily, Close
A7: Units: Percent
A8: Date Range: 1996-12-31 to 2016-04-11
A9: Last Updated: 2016-04-12 9:16 AM CDT
A10: Notes: This data represents the Option-Adjusted Spread (OAS) of the BofA | V10: 0
A11: Merrill Lynch US Corporate B Index, a subset of the BofA Merrill Lynch
A12: US High Yield Master II Index tracking the performance of US dollar
A13: denominated below investment grade rated corporate debt publically
A14: issued in the US domestic market. This subset includes all securities
A15: with a given investment grade rating B.
A16: The BofA Merrill Lynch OASs are the calculated spreads between a
A17: computed OAS index of all bonds in a given rating category and a spot
A18: Treasury curve. An OAS index is constructed using each constituent
A19: bondâ€™s OAS, weighted by market capitalization. When the last
A20: calendar day of the month takes place on the weekend, weekend
A21: observations will occur as a result of month ending accrued interest
A22: adjustments.
A24: Source BofA Merrill Lynch, used with permission. BOFA MERRILL LYNCH IS
A25: LICENSING THE BOFA MERRILL LYNCH INDICES â€œAS IS,â€ MAKES NO
A26: WARRANTIES REGARDING THE SAME , DOES NOT GUARANTEE THE SUITABILITY,
A27: QUALITY, ACCURACY, TIMELINESS, AND/ OR COMPLETENESS OF THE BOFA
A28: MERRILL LYNCH INDICIES OR ANY DATA INCLUDED IN, RELATED TO, OR DERIVED
A29: THEREFROM, ASSUMES NO LIABILITY IN CONNECTION WITH THEIR USE, AND DOES
A30: NOT SPONSOR, ENDORSE, OR RECOMMEND, [FRBSL], OR ANY OF ITS PRODUCTS OR
A31: SERVICES.
A33: Copyright, 2014, Bank of America Corporation. Reprinted with
A34: permission.
A36: DATE VALUE
A37: 1996-12-31 3.61
A38: 1997-01-02 3.51 | B38: 1997-01-02 | C38: 3.51
A39: 1997-01-03 3.54 | B39: 1997-01-03 | C39: 3.54
A40: 1997-01-06 3.55 | B40: 1997-01-06 | C40: 3.55
A41: 1997-01-07 3.56 | B41: 1997-01-07 | C41: 3.56
A42: 1997-01-08 3.53 | B42: 1997-01-08 | C42: 3.53
A43: 1997-01-09 3.58 | B43: 1997-01-09 | C43: 3.58
A44: 1997-01-10 3.60 | B44: 1997-01-10 | C44: 3.6
A45: 1997-01-13 3.48 | B45: 1997-01-13 | C45: 3.48
A46: 1997-01-14 3.55 | B46: 1997-01-14 | C46: 3.55
A47: 1997-01-15 3.53 | B47: 1997-01-15 | C47: 3.53
A48: 1997-01-16 3.48 | B48: 1997-01-16 | C48: 3.48
A49: 1997-01-17 3.50 | B49: 1997-01-17 | C49: 3.5
A50: 1997-01-20 3.49 | B50: 1997-01-20 | C50: 3.49
A51: 1997-01-21 3.51 | B51: 1997-01-21 | C51: 3.51
A52: 1997-01-22 3.44 | B52: 1997-01-22 | C52: 3.44
A53: 1997-01-23 3.41 | B53: 1997-01-23 | C53: 3.41
A54: 1997-01-24 3.37 | B54: 1997-01-24 | C54: 3.37
A55: 1997-01-27 3.32 | B55: 1997-01-27 | C55: 3.32
A56: 1997-01-28 3.37 | B56: 1997-01-28 | C56: 3.37
A57: 1997-01-29 3.39 | B57: 1997-01-29 | C57: 3.39
A58: 1997-01-30 3.43 | B58: 1997-01-30 | C58: 3.43
A59: 1997-01-31 3.52 | B59: 1997-01-31 | C59: 3.52
A60: 1997-02-03 3.58 | B60: 1997-02-03 | C60: 3.58
A61: 1997-02-04 3.59 | B61: 1997-02-04 | C61: 3.59
A62: 1997-02-05 3.54 | B62: 1997-02-05 | C62: 3.54
A63: 1997-02-06 3.53 | B63: 1997-02-06 | C63: 3.53
A64: 1997-02-07 3.58 | B64: 1997-02-07 | C64: 3.58
A65: 1997-02-10 3.55 | B65: 1997-02-10 | C65: 3.55
A66: 1997-02-11 3.53 | B66: 1997-02-11 | C66: 3.53
A67: 1997-02-12 3.50 | B67: 1997-02-12 | C67: 3.5
A68: 1997-02-13 3.56 | B68: 1997-02-13 | C68: 3.56
A69: 1997-02-14 3.57 | B69: 1997-02-14 | C69: 3.57
A70: 1997-02-18 3.51 | B70: 1997-02-18 | C70: 3.51
A71: 1997-02-19 3.48 | B71: 1997-02-19 | C71: 3.48
A72: 1997-02-20 3.36 | B72: 1997-02-20 | C72: 3.36
A73: 1997-02-21 3.34 | B73: 1997-02-21 | C73: 3.34
A74: 1997-02-24 3.29 | B74: 1997-02-24 | C74: 3.29
A75: 1997-02-25 3.27 | B75: 1997-02-25 | C75: 3.27
A76: 1997-02-26 3.11 | B76: 1997-02-26 | C76: 3.11
A77: 1997-02-27 3.11 | B77: 1997-02-27 | C77: 3.11
A78: 1997-02-28 3.08 | B78: 1997-02-28 | C78: 3.08
A79: 1997-03-03 3.05 | B79: 1997-03-03 | C79: 3.05
A80: 1997-03-04 3.02 | B80: 1997-03-04 | C80: 3.02
A81: 1997-03-05 3.07 | B81: 1997-03-05 | C81: 3.07
A82: 1997-03-06 3.06 | B82: 1997-03-06 | C82: 3.06
A83: 1997-03-07 3.10 | B83: 1997-03-07 | C83: 3.1
A84: 1997-03-10 3.11 | B84: 1997-03-10 | C84: 3.11
A85: 1997-03-11 3.09 | B85: 1997-03-11 | C85: 3.09
A86: 1997-03-12 3.05 | B86: 1997-03-12 | C86: 3.05
A87: 1997-03-13 2.96 | B87: 1997-03-13 | C87: 2.96
A88: 1997-03-14 3.01 | B88: 1997-03-14 | C88: 3.01
A89: 1997-03-17 3.02 | B89: 1997-03-17 | C89: 3.02
A90: 1997-03-18 3.03 | B90: 1997-03-18 | C90: 3.03
A91: 1997-03-19 3.05 | B91: 1997-03-19 | C91: 3.05
A92: 1997-03-20 3.08 | B92: 1997-03-20 | C92: 3.08
A93: 1997-03-21 3.09 | B93: 1997-03-21 | C93: 3.09
A94: 1997-03-24 3.13 | B94: 1997-03-24 | C94: 3.13
A95: 1997-03-25 3.09 | B95: 1997-03-25 | C95: 3.09
A96: 1997-03-26 3.12 | B96: 1997-03-26 | C96: 3.12
A97: 1997-03-27 3.07 | B97: 1997-03-27 | C97: 3.07
A98: 1997-03-31 3.31 | B98: 1997-03-31 | C98: 3.31
A99: 1997-04-01 3.38 | B99: 1997-04-01 | C99: 3.38
A100: 1997-04-02 3.43 | B100: 1997-04-02 | C100: 3.43
A101: 1997-04-03 3.44 | B101: 1997-04-03 | C101: 3.44
A102: 1997-04-04 3.41 | B102: 1997-04-04 | C102: 3.41
A103: 1997-04-07 3.44 | B103: 1997-04-07 | C103: 3.44
A104: 1997-04-08 3.40 | B104: 1997-04-08 | C104: 3.4
A105: 1997-04-09 3.38 | B105: 1997-04-09 | C105: 3.38
A106: 1997-04-10 3.38 | B106: 1997-04-10 | C106: 3.38
A107: 1997-04-11 3.32 | B107: 1997-04-11 | C107: 3.32
A108: 1997-04-14 3.34 | B108: 1997-04-14 | C108: 3.34
A109: 1997-04-15 3.41 | B109: 1997-04-15 | C109: 3.41
A110: 1997-04-16 3.38 | B110: 1997-04-16 | C110: 3.38
A111: 1997-04-17 3.39 | B111: 1997-04-17 | C111: 3.39
A112: 1997-04-18 3.38 | B112: 1997-04-18 | C112: 3.38
A113: 1997-04-21 3.33 | B113: 1997-04-21 | C113: 3.33
A114: 1997-04-22 3.34 | B114: 1997-04-22 | C114: 3.34
A115: 1997-04-23 3.25 | B115: 1997-04-23 | C115: 3.25
A116: 1997-04-24 3.19 | B116: 1997-04-24 | C116: 3.19
A117: 1997-04-25 3.19 | B117: 1997-04-25 | C117: 3.19
A118: 1997-04-28 3.23 | B118: 1997-04-28 | C118: 3.23
A119: 1997-04-29 3.36 | B119: 1997-04-29 | C119: 3.36
A120: 1997-04-30 3.47 | B120: 1997-04-30 | C120: 3.47
A121: 1997-05-01 3.42 | B121: 1997-05-01 | C121: 3.42
A122: 1997-05-02 3.41 | B122: 1997-05-02 | C122: 3.41
A123: 1997-05-05 3.35 | B123: 1997-05-05 | C123: 3.35
A124: 1997-05-06 3.30 | B124: 1997-05-06 | C124: 3.3
A125: 1997-05-07 3.25 | B125: 1997-05-07 | C125: 3.25
A126: 1997-05-08 3.25 | B126: 1997-05-08 | C126: 3.25
A127: 1997-05-09 3.27 | B127: 1997-05-09 | C127: 3.27
A128: 1997-05-12 3.30 | B128: 1997-05-12 | C128: 3.3
A129: 1997-05-13 3.15 | B129: 1997-05-13 | C129: 3.15
A130: 1997-05-14 3.12 | B130: 1997-05-14 | C130: 3.12
A131: 1997-05-15 3.12 | B131: 1997-05-15 | C131: 3.12
A132: 1997-05-16 3.09 | B132: 1997-05-16 | C132: 3.09
A133: 1997-05-19 3.08 | B133: 1997-05-19 | C133: 3.08
A134: 1997-05-20 3.11 | B134: 1997-05-20 | C134: 3.11
A135: 1997-05-21 3.09 | B135: 1997-05-21 | C135: 3.09
A136: 1997-05-22 3.04 | B136: 1997-05-22 | C136: 3.04
A137: 1997-05-23 3.05 | B137: 1997-05-23 | C137: 3.05
A138: 1997-05-27 3.00 | B138: 1997-05-27 | C138: 3
A139: 1997-05-28 2.98 | B139: 1997-05-28 | C139: 2.98
A140: 1997-05-29 3.02 | B140: 1997-05-29 | C140: 3.02
A141: 1997-05-30 3.05 | B141: 1997-05-30 | C141: 3.05
A142: 1997-05-31 3.05 | B142: 1997-05-31 | C142: 3.05
A143: 1997-06-02 3.04 | B143: 1997-06-02 | C143: 3.04
A144: 1997-06-03 3.08 | B144: 1997-06-03 | C144: 3.08
A145: 1997-06-04 3.05 | B145: 1997-06-04 | C145: 3.05
A146: 1997-06-05 2.96 | B146: 1997-06-05 | C146: 2.96
A147: 1997-06-06 3.10 | B147: 1997-06-06 | C147: 3.1
A148: 1997-06-09 2.99 | B148: 1997-06-09 | C148: 2.99
A149: 1997-06-10 2.94 | B149: 1997-06-10 | C149: 2.94
A150: 1997-06-11 2.92 | B150: 1997-06-11 | C150: 2.92
A151: 1997-06-12 2.99 | B151: 1997-06-12 | C151: 2.99
A152: 1997-06-13 3.03 | B152: 1997-06-13 | C152: 3.03
A153: 1997-06-16 3.03 | B153: 1997-06-16 | C153: 3.03
A154: 1997-06-17 2.99 | B154: 1997-06-17 | C154: 2.99
A155: 1997-06-18 3.04 | B155: 1997-06-18 | C155: 3.04
A156: 1997-06-19 3.04 | B156: 1997-06-19 | C156: 3.04
A157: 1997-06-20 3.06 | B157: 1997-06-20 | C157: 3.06
A158: 1997-06-23 3.02 | B158: 1997-06-23 | C158: 3.02
A159: 1997-06-24 3.01 | B159: 1997-06-24 | C159: 3.01
A160: 1997-06-25 2.98 | B160: 1997-06-25 | C160: 2.98
A161: 1997-06-26 3.00 | B161: 1997-06-26 | C161: 3
A162: 1997-06-27 3.04 | B162: 1997-06-27 | C162: 3.04
A163: 1997-06-30 3.09 | B163: 1997-06-30 | C163: 3.09
A164: 1997-07-01 3.14 | B164: 1997-07-01 | C164: 3.14
A165: 1997-07-02 3.16 | B165: 1997-07-02 | C165: 3.16
A166: 1997-07-03 3.22 | B166: 1997-07-03 | C166: 3.22
A167: 1997-07-07 3.28 | B167: 1997-07-07 | C167: 3.28
A168: 1997-07-08 3.27 | B168: 1997-07-08 | C168: 3.27
A169: 1997-07-09 3.27 | B169: 1997-07-09 | C169: 3.27
A170: 1997-07-10 3.25 | B170: 1997-07-10 | C170: 3.25
A171: 1997-07-11 3.24 | B171: 1997-07-11 | C171: 3.24
A172: 1997-07-14 3.20 | B172: 1997-07-14 | C172: 3.2
A173: 1997-07-15 3.17 | B173: 1997-07-15 | C173: 3.17
A174: 1997-07-16 3.20 | B174: 1997-07-16 | C174: 3.2
A175: 1997-07-17 3.19 | B175: 1997-07-17 | C175: 3.19
A176: 1997-07-18 3.14 | B176: 1997-07-18 | C176: 3.14
A177: 1997-07-21 3.11 | B177: 1997-07-21 | C177: 3.11
A178: 1997-07-22 3.22 | B178: 1997-07-22 | C178: 3.22
A179: 1997-07-23 3.20 | B179: 1997-07-23 | C179: 3.2
A180: 1997-07-24 3.19 | B180: 1997-07-24 | C180: 3.19
A181: 1997-07-25 3.15 | B181: 1997-07-25 | C181: 3.15
A182: 1997-07-28 3.17 | B182: 1997-07-28 | C182: 3.17
A183: 1997-07-29 3.18 | B183: 1997-07-29 | C183: 3.18
A184: 1997-07-30 3.21 | B184: 1997-07-30 | C184: 3.21
A185: 1997-07-31 3.26 | B185: 1997-07-31 | C185: 3.26
A186: 1997-08-01 3.07 | B186: 1997-08-01 | C186: 3.07
A187: 1997-08-04 3.05 | B187: 1997-08-04 | C187: 3.05
A188: 1997-08-05 3.04 | B188: 1997-08-05 | C188: 3.04
A189: 1997-08-06 3.05 | B189: 1997-08-06 | C189: 3.05
A190: 1997-08-07 3.00 | B190: 1997-08-07 | C190: 3
A191: 1997-08-08 2.96 | B191: 1997-08-08 | C191: 2.96
A192: 1997-08-11 2.97 | B192: 1997-08-11 | C192: 2.97
A193: 1997-08-12 2.97 | B193: 1997-08-12 | C193: 2.97
A194: 1997-08-13 3.01 | B194: 1997-08-13 | C194: 3.01
A195: 1997-08-14 3.08 | B195: 1997-08-14 | C195: 3.08
A196: 1997-08-15 3.08 | B196: 1997-08-15 | C196: 3.08
A197: 1997-08-18 3.14 | B197: 1997-08-18 | C197: 3.14
A198: 1997-08-19 3.12 | B198: 1997-08-19 | C198: 3.12
A199: 1997-08-20 3.08 | B199: 1997-08-20 | C199: 3.08
A200: 1997-08-21 3.03 | B200: 1997-08-21 | C200: 3.03
A201: 1997-08-22 2.99 | B201: 1997-08-22 | C201: 2.99
A202: 1997-08-25 2.96 | B202: 1997-08-25 | C202: 2.96
A203: 1997-08-26 2.99 | B203: 1997-08-26 | C203: 2.99
... 4863 more rows

Sheet B Index YTW
A1: Title: BofA Merrill Lynch US High Yield B Effective YieldÂ©
A2: Series ID: BAMLH0A2HYBEY
A3: Source: BofA Merrill Lynch
A4: Release: BofA Merrill Lynch (Not a Press Release)
A5: Seasonal Adjustment: Not Seasonally Adjusted
A6: Frequency: Daily, Close
A7: Units: Percent
A8: Date Range: 1996-12-31 to 2016-04-11
A9: Last Updated: 2016-04-12 9:16 AM CDT
A10: Notes: This data represents the effective yield of the BofA Merrill Lynch US
A11: Corporate B Index, a subset of the BofA Merrill Lynch US High Yield
A12: Master II Index tracking the performance of US dollar denominated
A13: below investment grade rated corporate debt publically issued in the
A14: US domestic market. This subset includes all securities with a given
A15: investment grade rating B. When the last calendar day of the month
A16: takes place on the weekend, weekend observations will occur as a
A17: result of month ending accrued interest adjustments.
A19: Source BofA Merrill Lynch, used with permission. BOFA MERRILL LYNCH IS
A20: LICENSING THE BOFA MERRILL LYNCH INDICES â€œAS IS,â€ MAKES NO
A21: WARRANTIES REGARDING THE SAME , DOES NOT GUARANTEE THE SUITABILITY,
A22: QUALITY, ACCURACY, TIMELINESS, AND/ OR COMPLETENESS OF THE BOFA
A23: MERRILL LYNCH INDICIES OR ANY DATA INCLUDED IN, RELATED TO, OR DERIVED
A24: THEREFROM, ASSUMES NO LIABILITY IN CONNECTION WITH THEIR USE, AND DOES
A25: NOT SPONSOR, ENDORSE, OR RECOMMEND, [FRBSL], OR ANY OF ITS PRODUCTS OR
A26: SERVICES.
A28: Copyright, 2014, Bank of America Corporation. Reprinted with
A29: permission.
A31: DATE VALUE
A32: 1996-12-31 10.01 | B32: 1996-12-31 | C32: 10.01
A33: 1997-01-02 10.00 | B33: 1997-01-02 | C33: 10
A34: 1997-01-03 10.01 | B34: 1997-01-03 | C34: 10.01
A35: 1997-01-06 10.05 | B35: 1997-01-06 | C35: 10.05
A36: 1997-01-07 10.07 | B36: 1997-01-07 | C36: 10.07
A37: 1997-01-08 10.07 | B37: 1997-01-08 | C37: 10.07
A38: 1997-01-09 10.04 | B38: 1997-01-09 | C38: 10.04
A39: 1997-01-10 10.06 | B39: 1997-01-10 | C39: 10.06
A40: 1997-01-13 10.06 | B40: 1997-01-13 | C40: 10.06
A41: 1997-01-14 10.03 | B41: 1997-01-14 | C41: 10.03
A42: 1997-01-15 10.00 | B42: 1997-01-15 | C42: 10
A43: 1997-01-16 10.00 | B43: 1997-01-16 | C43: 10
A44: 1997-01-17 10.00 | B44: 1997-01-17 | C44: 10
A45: 1997-01-20 10.00 | B45: 1997-01-20 | C45: 10
A46: 1997-01-21 9.98 | B46: 1997-01-21 | C46: 9.98
A47: 1997-01-22 9.95 | B47: 1997-01-22 | C47: 9.95
A48: 1997-01-23 9.95 | B48: 1997-01-23 | C48: 9.95
A49: 1997-01-24 9.95 | B49: 1997-01-24 | C49: 9.95
A50: 1997-01-27 9.94 | B50: 1997-01-27 | C50: 9.94
A51: 1997-01-28 9.94 | B51: 1997-01-28 | C51: 9.94
A52: 1997-01-29 9.88 | B52: 1997-01-29 | C52: 9.88
A53: 1997-01-30 9.90 | B53: 1997-01-30 | C53: 9.9
A54: 1997-01-31 9.92 | B54: 1997-01-31 | C54: 9.92
A55: 1997-02-03 9.90 | B55: 1997-02-03 | C55: 9.9
A56: 1997-02-04 9.89 | B56: 1997-02-04 | C56: 9.89
A57: 1997-02-05 9.87 | B57: 1997-02-05 | C57: 9.87
A58: 1997-02-06 9.86 | B58: 1997-02-06 | C58: 9.86
A59: 1997-02-07 9.85 | B59: 1997-02-07 | C59: 9.85
A60: 1997-02-10 9.83 | B60: 1997-02-10 | C60: 9.83
A61: 1997-02-11 9.81 | B61: 1997-02-11 | C61: 9.81
A62: 1997-02-12 9.79 | B62: 1997-02-12 | C62: 9.79
A63: 1997-02-13 9.77 | B63: 1997-02-13 | C63: 9.77
A64: 1997-02-14 9.74 | B64: 1997-02-14 | C64: 9.74
A65: 1997-02-18 9.75 | B65: 1997-02-18 | C65: 9.75
A66: 1997-02-19 9.74 | B66: 1997-02-19 | C66: 9.74
A67: 1997-02-20 9.69 | B67: 1997-02-20 | C67: 9.69
A68: 1997-02-21 9.66 | B68: 1997-02-21 | C68: 9.66
A69: 1997-02-24 9.64 | B69: 1997-02-24 | C69: 9.64
A70: 1997-02-25 9.63 | B70: 1997-02-25 | C70: 9.63
A71: 1997-02-26 9.62 | B71: 1997-02-26 | C71: 9.62
A72: 1997-02-27 9.65 | B72: 1997-02-27 | C72: 9.65
A73: 1997-02-28 9.68 | B73: 1997-02-28 | C73: 9.68
A74: 1997-03-03 9.66 | B74: 1997-03-03 | C74: 9.66
A75: 1997-03-04 9.66 | B75: 1997-03-04 | C75: 9.66
A76: 1997-03-05 9.64 | B76: 1997-03-05 | C76: 9.64
A77: 1997-03-06 9.65 | B77: 1997-03-06 | C77: 9.65
A78: 1997-03-07 9.64 | B78: 1997-03-07 | C78: 9.64
A79: 1997-03-10 9.65 | B79: 1997-03-10 | C79: 9.65
A80: 1997-03-11 9.63 | B80: 1997-03-11 | C80: 9.63
A81: 1997-03-12 9.63 | B81: 1997-03-12 | C81: 9.63
A82: 1997-03-13 9.65 | B82: 1997-03-13 | C82: 9.65
A83: 1997-03-14 9.68 | B83: 1997-03-14 | C83: 9.68
A84: 1997-03-17 9.70 | B84: 1997-03-17 | C84: 9.7
A85: 1997-03-18 9.71 | B85: 1997-03-18 | C85: 9.71
A86: 1997-03-19 9.76 | B86: 1997-03-19 | C86: 9.76
A87: 1997-03-20 9.79 | B87: 1997-03-20 | C87: 9.79
A88: 1997-03-21 9.80 | B88: 1997-03-21 | C88: 9.8
A89: 1997-03-24 9.82 | B89: 1997-03-24 | C89: 9.82
A90: 1997-03-25 9.81 | B90: 1997-03-25 | C90: 9.81
A91: 1997-03-26 9.87 | B91: 1997-03-26 | C91: 9.87
A92: 1997-03-27 9.94 | B92: 1997-03-27 | C92: 9.94
A93: 1997-03-31 10.21 | B93: 1997-03-31 | C93: 10.21
A94: 1997-04-01 10.24 | B94: 1997-04-01 | C94: 10.24
A95: 1997-04-02 10.27 | B95: 1997-04-02 | C95: 10.27
A96: 1997-04-03 10.28 | B96: 1997-04-03 | C96: 10.28
A97: 1997-04-04 10.30 | B97: 1997-04-04 | C97: 10.3
A98: 1997-04-07 10.26 | B98: 1997-04-07 | C98: 10.26
A99: 1997-04-08 10.27 | B99: 1997-04-08 | C99: 10.27
A100: 1997-04-09 10.25 | B100: 1997-04-09 | C100: 10.25
A101: 1997-04-10 10.26 | B101: 1997-04-10 | C101: 10.26
A102: 1997-04-11 10.28 | B102: 1997-04-11 | C102: 10.28
A103: 1997-04-14 10.29 | B103: 1997-04-14 | C103: 10.29
A104: 1997-04-15 10.23 | B104: 1997-04-15 | C104: 10.23
A105: 1997-04-16 10.22 | B105: 1997-04-16 | C105: 10.22
A106: 1997-04-17 10.21 | B106: 1997-04-17 | C106: 10.21
A107: 1997-04-18 10.15 | B107: 1997-04-18 | C107: 10.15
A108: 1997-04-21 10.16 | B108: 1997-04-21 | C108: 10.16
A109: 1997-04-22 10.14 | B109: 1997-04-22 | C109: 10.14
A110: 1997-04-23 10.12 | B110: 1997-04-23 | C110: 10.12
A111: 1997-04-24 10.11 | B111: 1997-04-24 | C111: 10.11
A112: 1997-04-25 10.10 | B112: 1997-04-25 | C112: 10.1
A113: 1997-04-28 10.12 | B113: 1997-04-28 | C113: 10.12
A114: 1997-04-29 10.09 | B114: 1997-04-29 | C114: 10.09
A115: 1997-04-30 10.16 | B115: 1997-04-30 | C115: 10.16
A116: 1997-05-01 10.08 | B116: 1997-05-01 | C116: 10.08
A117: 1997-05-02 10.05 | B117: 1997-05-02 | C117: 10.05
A118: 1997-05-05 9.99 | B118: 1997-05-05 | C118: 9.99
A119: 1997-05-06 9.95 | B119: 1997-05-06 | C119: 9.95
A120: 1997-05-07 9.97 | B120: 1997-05-07 | C120: 9.97
A121: 1997-05-08 9.95 | B121: 1997-05-08 | C121: 9.95
A122: 1997-05-09 9.90 | B122: 1997-05-09 | C122: 9.9
A123: 1997-05-12 9.91 | B123: 1997-05-12 | C123: 9.91
A124: 1997-05-13 9.82 | B124: 1997-05-13 | C124: 9.82
A125: 1997-05-14 9.82 | B125: 1997-05-14 | C125: 9.82
A126: 1997-05-15 9.78 | B126: 1997-05-15 | C126: 9.78
A127: 1997-05-16 9.74 | B127: 1997-05-16 | C127: 9.74
A128: 1997-05-19 9.73 | B128: 1997-05-19 | C128: 9.73
A129: 1997-05-20 9.74 | B129: 1997-05-20 | C129: 9.74
A130: 1997-05-21 9.75 | B130: 1997-05-21 | C130: 9.75
A131: 1997-05-22 9.74 | B131: 1997-05-22 | C131: 9.74
A132: 1997-05-23 9.73 | B132: 1997-05-23 | C132: 9.73
A133: 1997-05-27 9.72 | B133: 1997-05-27 | C133: 9.72
A134: 1997-05-28 9.71 | B134: 1997-05-28 | C134: 9.71
A135: 1997-05-29 9.69 | B135: 1997-05-29 | C135: 9.69
A136: 1997-05-30 9.65 | B136: 1997-05-30 | C136: 9.65
A137: 1997-05-31 9.69 | B137: 1997-05-31 | C137: 9.69
A138: 1997-06-02 9.73 | B138: 1997-06-02 | C138: 9.73
A139: 1997-06-03 9.74 | B139: 1997-06-03 | C139: 9.74
A140: 1997-06-04 9.72 | B140: 1997-06-04 | C140: 9.72
A141: 1997-06-05 9.70 | B141: 1997-06-05 | C141: 9.7
A142: 1997-06-06 9.68 | B142: 1997-06-06 | C142: 9.68
A143: 1997-06-09 9.63 | B143: 1997-06-09 | C143: 9.63
A144: 1997-06-10 9.60 | B144: 1997-06-10 | C144: 9.6
A145: 1997-06-11 9.57 | B145: 1997-06-11 | C145: 9.57
A146: 1997-06-12 9.55 | B146: 1997-06-12 | C146: 9.55
A147: 1997-06-13 9.55 | B147: 1997-06-13 | C147: 9.55
A148: 1997-06-16 9.51 | B148: 1997-06-16 | C148: 9.51
A149: 1997-06-17 9.50 | B149: 1997-06-17 | C149: 9.5
A150: 1997-06-18 9.53 | B150: 1997-06-18 | C150: 9.53
A151: 1997-06-19 9.52 | B151: 1997-06-19 | C151: 9.52
A152: 1997-06-20 9.52 | B152: 1997-06-20 | C152: 9.52
A153: 1997-06-23 9.52 | B153: 1997-06-23 | C153: 9.52
A154: 1997-06-24 9.51 | B154: 1997-06-24 | C154: 9.51
A155: 1997-06-25 9.44 | B155: 1997-06-25 | C155: 9.44
A156: 1997-06-26 9.51 | B156: 1997-06-26 | C156: 9.51
A157: 1997-06-27 9.51 | B157: 1997-06-27 | C157: 9.51
A158: 1997-06-30 9.64 | B158: 1997-06-30 | C158: 9.64
A159: 1997-07-01 9.62 | B159: 1997-07-01 | C159: 9.62
A160: 1997-07-02 9.69 | B160: 1997-07-02 | C160: 9.69
A161: 1997-07-03 9.64 | B161: 1997-07-03 | C161: 9.64
A162: 1997-07-07 9.66 | B162: 1997-07-07 | C162: 9.66
A163: 1997-07-08 9.65 | B163: 1997-07-08 | C163: 9.65
A164: 1997-07-09 9.63 | B164: 1997-07-09 | C164: 9.63
A165: 1997-07-10 9.61 | B165: 1997-07-10 | C165: 9.61
A166: 1997-07-11 9.59 | B166: 1997-07-11 | C166: 9.59
A167: 1997-07-14 9.58 | B167: 1997-07-14 | C167: 9.58
A168: 1997-07-15 9.53 | B168: 1997-07-15 | C168: 9.53
A169: 1997-07-16 9.50 | B169: 1997-07-16 | C169: 9.5
A170: 1997-07-17 9.49 | B170: 1997-07-17 | C170: 9.49
A171: 1997-07-18 9.49 | B171: 1997-07-18 | C171: 9.49
A172: 1997-07-21 9.48 | B172: 1997-07-21 | C172: 9.48
A173: 1997-07-22 9.46 | B173: 1997-07-22 | C173: 9.46
A174: 1997-07-23 9.45 | B174: 1997-07-23 | C174: 9.45
A175: 1997-07-24 9.45 | B175: 1997-07-24 | C175: 9.45
A176: 1997-07-25 9.42 | B176: 1997-07-25 | C176: 9.42
A177: 1997-07-28 9.41 | B177: 1997-07-28 | C177: 9.41
A178: 1997-07-29 9.38 | B178: 1997-07-29 | C178: 9.38
A179: 1997-07-30 9.36 | B179: 1997-07-30 | C179: 9.36
A180: 1997-07-31 9.38 | B180: 1997-07-31 | C180: 9.38
A181: 1997-08-01 9.36 | B181: 1997-08-01 | C181: 9.36
A182: 1997-08-04 9.37 | B182: 1997-08-04 | C182: 9.37
A183: 1997-08-05 9.37 | B183: 1997-08-05 | C183: 9.37
A184: 1997-08-06 9.36 | B184: 1997-08-06 | C184: 9.36
A185: 1997-08-07 9.35 | B185: 1997-08-07 | C185: 9.35
A186: 1997-08-08 9.43 | B186: 1997-08-08 | C186: 9.43
A187: 1997-08-11 9.44 | B187: 1997-08-11 | C187: 9.44
A188: 1997-08-12 9.46 | B188: 1997-08-12 | C188: 9.46
A189: 1997-08-13 9.47 | B189: 1997-08-13 | C189: 9.47
A190: 1997-08-14 9.46 | B190: 1997-08-14 | C190: 9.46
A191: 1997-08-15 9.45 | B191: 1997-08-15 | C191: 9.45
A192: 1997-08-18 9.45 | B192: 1997-08-18 | C192: 9.45
A193: 1997-08-19 9.44 | B193: 1997-08-19 | C193: 9.44
A194: 1997-08-20 9.43 | B194: 1997-08-20 | C194: 9.43
A195: 1997-08-21 9.44 | B195: 1997-08-21 | C195: 9.44
A196: 1997-08-22 9.46 | B196: 1997-08-22 | C196: 9.46
A197: 1997-08-25 9.45 | B197: 1997-08-25 | C197: 9.45
A198: 1997-08-26 9.46 | B198: 1997-08-26 | C198: 9.46
A199: 1997-08-27 9.47 | B199: 1997-08-27 | C199: 9.47
A200: 1997-08-28 9.48 | B200: 1997-08-28 | C200: 9.48
A201: 1997-08-29 9.48 | B201: 1997-08-29 | C201: 9.48
A202: 1997-08-31 9.60 | B202: 1997-08-31 | C202: 9.6
A203: 1997-09-02 9.60 | B203: 1997-09-02 | C203: 9.6
... 4858 more rows

Sheet CCC Index STW
A1: Title: BofA Merrill Lynch US High Yield CCC or Below Option-Adjusted SpreadÂ©
A2: Series ID: BAMLH0A3HYC
A3: Source: BofA Merrill Lynch
A4: Release: BofA Merrill Lynch (Not a Press Release)
A5: Seasonal Adjustment: Not Seasonally Adjusted
A6: Frequency: Daily, Close
A7: Units: Percent
A8: Date Range: 1996-12-31 to 2016-04-11
A9: Last Updated: 2016-04-12 9:16 AM CDT
A10: Notes: This data represents the Option-Adjusted Spread (OAS) of the BofA
A11: Merrill Lynch US Corporate C Index, a subset of the BofA Merrill Lynch
A12: US High Yield Master II Index tracking the performance of US dollar
A13: denominated below investment grade rated corporate debt publically
A14: issued in the US domestic market. This subset includes all securities
A15: with a given investment grade rating CCC or below.
A16: The BofA Merrill Lynch OASs are the calculated spreads between a
A17: computed OAS index of all bonds in a given rating category and a spot
A18: Treasury curve. An OAS index is constructed using each constituent
A19: bondâ€™s OAS, weighted by market capitalization. When the last
A20: calendar day of the month takes place on the weekend, weekend
A21: observations will occur as a result of month ending accrued interest
A22: adjustments.
A24: Source BofA Merrill Lynch, used with permission. BOFA MERRILL LYNCH IS
A25: LICENSING THE BOFA MERRILL LYNCH INDICES â€œAS IS,â€ MAKES NO
A26: WARRANTIES REGARDING THE SAME , DOES NOT GUARANTEE THE SUITABILITY,
A27: QUALITY, ACCURACY, TIMELINESS, AND/ OR COMPLETENESS OF THE BOFA
A28: MERRILL LYNCH INDICIES OR ANY DATA INCLUDED IN, RELATED TO, OR DERIVED
A29: THEREFROM, ASSUMES NO LIABILITY IN CONNECTION WITH THEIR USE, AND DOES
A30: NOT SPONSOR, ENDORSE, OR RECOMMEND, [FRBSL], OR ANY OF ITS PRODUCTS OR
A31: SERVICES.
A33: Copyright, 2014, Bank of America Corporation. Reprinted with
A34: permission.
A36: DATE VALUE
A37: 1996-12-31 7.38 | B37: 1996-12-31 | C37: 7.38
A38: 1997-01-02 7.28 | B38: 1997-01-02 | C38: 7.28
A39: 1997-01-03 7.37 | B39: 1997-01-03 | C39: 7.37
A40: 1997-01-06 7.36 | B40: 1997-01-06 | C40: 7.36
A41: 1997-01-07 7.36 | B41: 1997-01-07 | C41: 7.36
A42: 1997-01-08 7.34 | B42: 1997-01-08 | C42: 7.34
A43: 1997-01-09 7.47 | B43: 1997-01-09 | C43: 7.47
A44: 1997-01-10 7.47 | B44: 1997-01-10 | C44: 7.47
A45: 1997-01-13 7.40 | B45: 1997-01-13 | C45: 7.4
A46: 1997-01-14 7.37 | B46: 1997-01-14 | C46: 7.37
A47: 1997-01-15 7.30 | B47: 1997-01-15 | C47: 7.3
A48: 1997-01-16 7.22 | B48: 1997-01-16 | C48: 7.22
A49: 1997-01-17 7.24 | B49: 1997-01-17 | C49: 7.24
A50: 1997-01-20 7.19 | B50: 1997-01-20 | C50: 7.19
A51: 1997-01-21 7.23 | B51: 1997-01-21 | C51: 7.23
A52: 1997-01-22 7.15 | B52: 1997-01-22 | C52: 7.15
A53: 1997-01-23 7.16 | B53: 1997-01-23 | C53: 7.16
A54: 1997-01-24 7.08 | B54: 1997-01-24 | C54: 7.08
A55: 1997-01-27 7.00 | B55: 1997-01-27 | C55: 7
A56: 1997-01-28 6.95 | B56: 1997-01-28 | C56: 6.95
A57: 1997-01-29 7.09 | B57: 1997-01-29 | C57: 7.09
A58: 1997-01-30 7.14 | B58: 1997-01-30 | C58: 7.14
A59: 1997-01-31 7.30 | B59: 1997-01-31 | C59: 7.3
A60: 1997-02-03 7.30 | B60: 1997-02-03 | C60: 7.3
A61: 1997-02-04 7.27 | B61: 1997-02-04 | C61: 7.27
A62: 1997-02-05 7.22 | B62: 1997-02-05 | C62: 7.22
A63: 1997-02-06 7.19 | B63: 1997-02-06 | C63: 7.19
A64: 1997-02-07 7.20 | B64: 1997-02-07 | C64: 7.2
A65: 1997-02-10 7.12 | B65: 1997-02-10 | C65: 7.12
A66: 1997-02-11 7.11 | B66: 1997-02-11 | C66: 7.11
A67: 1997-02-12 7.07 | B67: 1997-02-12 | C67: 7.07
A68: 1997-02-13 7.13 | B68: 1997-02-13 | C68: 7.13
A69: 1997-02-14 7.13 | B69: 1997-02-14 | C69: 7.13
A70: 1997-02-18 7.07 | B70: 1997-02-18 | C70: 7.07
A71: 1997-02-19 7.03 | B71: 1997-02-19 | C71: 7.03
A72: 1997-02-20 6.89 | B72: 1997-02-20 | C72: 6.89
A73: 1997-02-21 6.92 | B73: 1997-02-21 | C73: 6.92
A74: 1997-02-24 6.86 | B74: 1997-02-24 | C74: 6.86
A75: 1997-02-25 6.71 | B75: 1997-02-25 | C75: 6.71
A76: 1997-02-26 6.53 | B76: 1997-02-26 | C76: 6.53
A77: 1997-02-27 6.49 | B77: 1997-02-27 | C77: 6.49
A78: 1997-02-28 6.46 | B78: 1997-02-28 | C78: 6.46
A79: 1997-03-03 6.49 | B79: 1997-03-03 | C79: 6.49
A80: 1997-03-04 6.28 | B80: 1997-03-04 | C80: 6.28
A81: 1997-03-05 6.44 | B81: 1997-03-05 | C81: 6.44
A82: 1997-03-06 6.42 | B82: 1997-03-06 | C82: 6.42
A83: 1997-03-07 6.48 | B83: 1997-03-07 | C83: 6.48
A84: 1997-03-10 6.50 | B84: 1997-03-10 | C84: 6.5
A85: 1997-03-11 6.50 | B85: 1997-03-11 | C85: 6.5
A86: 1997-03-12 6.44 | B86: 1997-03-12 | C86: 6.44
A87: 1997-03-13 6.36 | B87: 1997-03-13 | C87: 6.36
A88: 1997-03-14 6.41 | B88: 1997-03-14 | C88: 6.41
A89: 1997-03-17 6.35 | B89: 1997-03-17 | C89: 6.35
A90: 1997-03-18 6.38 | B90: 1997-03-18 | C90: 6.38
A91: 1997-03-19 6.29 | B91: 1997-03-19 | C91: 6.29
A92: 1997-03-20 6.29 | B92: 1997-03-20 | C92: 6.29
A93: 1997-03-21 6.30 | B93: 1997-03-21 | C93: 6.3
A94: 1997-03-24 6.33 | B94: 1997-03-24 | C94: 6.33
A95: 1997-03-25 6.31 | B95: 1997-03-25 | C95: 6.31
A96: 1997-03-26 6.32 | B96: 1997-03-26 | C96: 6.32
A97: 1997-03-27 6.26 | B97: 1997-03-27 | C97: 6.26
A98: 1997-03-31 6.50 | B98: 1997-03-31 | C98: 6.5
A99: 1997-04-01 6.59 | B99: 1997-04-01 | C99: 6.59
A100: 1997-04-02 6.65 | B100: 1997-04-02 | C100: 6.65
A101: 1997-04-03 6.69 | B101: 1997-04-03 | C101: 6.69
A102: 1997-04-04 6.61 | B102: 1997-04-04 | C102: 6.61
A103: 1997-04-07 6.65 | B103: 1997-04-07 | C103: 6.65
A104: 1997-04-08 6.62 | B104: 1997-04-08 | C104: 6.62
A105: 1997-04-09 6.63 | B105: 1997-04-09 | C105: 6.63
A106: 1997-04-10 6.68 | B106: 1997-04-10 | C106: 6.68
A107: 1997-04-11 6.69 | B107: 1997-04-11 | C107: 6.69
A108: 1997-04-14 6.65 | B108: 1997-04-14 | C108: 6.65
A109: 1997-04-15 6.60 | B109: 1997-04-15 | C109: 6.6
A110: 1997-04-16 6.51 | B110: 1997-04-16 | C110: 6.51
A111: 1997-04-17 6.57 | B111: 1997-04-17 | C111: 6.57
A112: 1997-04-18 6.55 | B112: 1997-04-18 | C112: 6.55
A113: 1997-04-21 6.45 | B113: 1997-04-21 | C113: 6.45
A114: 1997-04-22 6.45 | B114: 1997-04-22 | C114: 6.45
A115: 1997-04-23 6.39 | B115: 1997-04-23 | C115: 6.39
A116: 1997-04-24 6.34 | B116: 1997-04-24 | C116: 6.34
A117: 1997-04-25 6.32 | B117: 1997-04-25 | C117: 6.32
A118: 1997-04-28 6.47 | B118: 1997-04-28 | C118: 6.47
A119: 1997-04-29 6.58 | B119: 1997-04-29 | C119: 6.58
A120: 1997-04-30 6.79 | B120: 1997-04-30 | C120: 6.79
A121: 1997-05-01 6.80 | B121: 1997-05-01 | C121: 6.8
A122: 1997-05-02 6.80 | B122: 1997-05-02 | C122: 6.8
A123: 1997-05-05 6.76 | B123: 1997-05-05 | C123: 6.76
A124: 1997-05-06 6.75 | B124: 1997-05-06 | C124: 6.75
A125: 1997-05-07 6.67 | B125: 1997-05-07 | C125: 6.67
A126: 1997-05-08 6.66 | B126: 1997-05-08 | C126: 6.66
A127: 1997-05-09 6.66 | B127: 1997-05-09 | C127: 6.66
A128: 1997-05-12 6.64 | B128: 1997-05-12 | C128: 6.64
A129: 1997-05-13 6.59 | B129: 1997-05-13 | C129: 6.59
A130: 1997-05-14 6.56 | B130: 1997-05-14 | C130: 6.56
A131: 1997-05-15 6.55 | B131: 1997-05-15 | C131: 6.55
A132: 1997-05-16 6.50 | B132: 1997-05-16 | C132: 6.5
A133: 1997-05-19 6.50 | B133: 1997-05-19 | C133: 6.5
A134: 1997-05-20 6.51 | B134: 1997-05-20 | C134: 6.51
A135: 1997-05-21 6.47 | B135: 1997-05-21 | C135: 6.47
A136: 1997-05-22 6.40 | B136: 1997-05-22 | C136: 6.4
A137: 1997-05-23 6.41 | B137: 1997-05-23 | C137: 6.41
A138: 1997-05-27 6.39 | B138: 1997-05-27 | C138: 6.39
A139: 1997-05-28 6.66 | B139: 1997-05-28 | C139: 6.66
A140: 1997-05-29 6.40 | B140: 1997-05-29 | C140: 6.4
A141: 1997-05-30 6.44 | B141: 1997-05-30 | C141: 6.44
A142: 1997-05-31 6.45 | B142: 1997-05-31 | C142: 6.45
A143: 1997-06-02 6.45 | B143: 1997-06-02 | C143: 6.45
A144: 1997-06-03 6.44 | B144: 1997-06-03 | C144: 6.44
A145: 1997-06-04 6.36 | B145: 1997-06-04 | C145: 6.36
A146: 1997-06-05 6.33 | B146: 1997-06-05 | C146: 6.33
A147: 1997-06-06 6.32 | B147: 1997-06-06 | C147: 6.32
A148: 1997-06-09 6.15 | B148: 1997-06-09 | C148: 6.15
A149: 1997-06-10 6.10 | B149: 1997-06-10 | C149: 6.1
A150: 1997-06-11 6.10 | B150: 1997-06-11 | C150: 6.1
A151: 1997-06-12 6.21 | B151: 1997-06-12 | C151: 6.21
A152: 1997-06-13 6.26 | B152: 1997-06-13 | C152: 6.26
A153: 1997-06-16 6.19 | B153: 1997-06-16 | C153: 6.19
A154: 1997-06-17 6.17 | B154: 1997-06-17 | C154: 6.17
A155: 1997-06-18 6.23 | B155: 1997-06-18 | C155: 6.23
A156: 1997-06-19 6.25 | B156: 1997-06-19 | C156: 6.25
A157: 1997-06-20 6.30 | B157: 1997-06-20 | C157: 6.3
A158: 1997-06-23 6.29 | B158: 1997-06-23 | C158: 6.29
A159: 1997-06-24 6.31 | B159: 1997-06-24 | C159: 6.31
A160: 1997-06-25 6.27 | B160: 1997-06-25 | C160: 6.27
A161: 1997-06-26 6.35 | B161: 1997-06-26 | C161: 6.35
A162: 1997-06-27 6.35 | B162: 1997-06-27 | C162: 6.35
A163: 1997-06-30 6.64 | B163: 1997-06-30 | C163: 6.64
A164: 1997-07-01 6.68 | B164: 1997-07-01 | C164: 6.68
A165: 1997-07-02 6.71 | B165: 1997-07-02 | C165: 6.71
A166: 1997-07-03 6.83 | B166: 1997-07-03 | C166: 6.83
A167: 1997-07-07 6.84 | B167: 1997-07-07 | C167: 6.84
A168: 1997-07-08 6.78 | B168: 1997-07-08 | C168: 6.78
A169: 1997-07-09 6.73 | B169: 1997-07-09 | C169: 6.73
A170: 1997-07-10 6.72 | B170: 1997-07-10 | C170: 6.72
A171: 1997-07-11 6.73 | B171: 1997-07-11 | C171: 6.73
A172: 1997-07-14 6.68 | B172: 1997-07-14 | C172: 6.68
A173: 1997-07-15 6.67 | B173: 1997-07-15 | C173: 6.67
A174: 1997-07-16 6.70 | B174: 1997-07-16 | C174: 6.7
A175: 1997-07-17 6.66 | B175: 1997-07-17 | C175: 6.66
A176: 1997-07-18 6.64 | B176: 1997-07-18 | C176: 6.64
A177: 1997-07-21 6.70 | B177: 1997-07-21 | C177: 6.7
A178: 1997-07-22 6.80 | B178: 1997-07-22 | C178: 6.8
A179: 1997-07-23 6.77 | B179: 1997-07-23 | C179: 6.77
A180: 1997-07-24 6.75 | B180: 1997-07-24 | C180: 6.75
A181: 1997-07-25 6.75 | B181: 1997-07-25 | C181: 6.75
A182: 1997-07-28 6.78 | B182: 1997-07-28 | C182: 6.78
A183: 1997-07-29 6.88 | B183: 1997-07-29 | C183: 6.88
A184: 1997-07-30 6.91 | B184: 1997-07-30 | C184: 6.91
A185: 1997-07-31 6.53 | B185: 1997-07-31 | C185: 6.53
A186: 1997-08-01 6.35 | B186: 1997-08-01 | C186: 6.35
A187: 1997-08-04 6.35 | B187: 1997-08-04 | C187: 6.35
A188: 1997-08-05 6.34 | B188: 1997-08-05 | C188: 6.34
A189: 1997-08-06 6.29 | B189: 1997-08-06 | C189: 6.29
A190: 1997-08-07 6.21 | B190: 1997-08-07 | C190: 6.21
A191: 1997-08-08 6.42 | B191: 1997-08-08 | C191: 6.42
A192: 1997-08-11 6.44 | B192: 1997-08-11 | C192: 6.44
A193: 1997-08-12 6.40 | B193: 1997-08-12 | C193: 6.4
A194: 1997-08-13 6.43 | B194: 1997-08-13 | C194: 6.43
A195: 1997-08-14 6.19 | B195: 1997-08-14 | C195: 6.19
A196: 1997-08-15 6.17 | B196: 1997-08-15 | C196: 6.17
A197: 1997-08-18 6.26 | B197: 1997-08-18 | C197: 6.26
A198: 1997-08-19 6.26 | B198: 1997-08-19 | C198: 6.26
A199: 1997-08-20 6.21 | B199: 1997-08-20 | C199: 6.21
A200: 1997-08-21 6.15 | B200: 1997-08-21 | C200: 6.15
A201: 1997-08-22 6.42 | B201: 1997-08-22 | C201: 6.42
A202: 1997-08-25 6.38 | B202: 1997-08-25 | C202: 6.38
A203: 1997-08-26 6.40 | B203: 1997-08-26 | C203: 6.4
... 4863 more rows

Sheet CCC Index YTW
A1: Title: BofA Merrill Lynch US High Yield CCC or Below Effective YieldÂ©
A2: Series ID: BAMLH0A3HYCEY
A3: Source: BofA Merrill Lynch
A4: Release: BofA Merrill Lynch (Not a Press Release)
A5: Seasonal Adjustment: Not Seasonally Adjusted
A6: Frequency: Daily, Close
A7: Units: Percent
A8: Date Range: 1996-12-31 to 2016-04-11
A9: Last Updated: 2016-04-12 9:16 AM CDT
A10: Notes: This data represents the effective yield of the BofA Merrill Lynch US
A11: Corporate C Index, a subset of the BofA Merrill Lynch US High Yield
A12: Master II Index tracking the performance of US dollar denominated
A13: below investment grade rated corporate debt publically issued in the
A14: US domestic market. This subset includes all securities with a given
A15: investment grade rating CCC or below. When the last calendar day of
A16: the month takes place on the weekend, weekend observations will occur
A17: as a result of month ending accrued interest adjustments.
A19: Source BofA Merrill Lynch, used with permission. BOFA MERRILL LYNCH IS
A20: LICENSING THE BOFA MERRILL LYNCH INDICES â€œAS IS,â€ MAKES NO
A21: WARRANTIES REGARDING THE SAME , DOES NOT GUARANTEE THE SUITABILITY,
A22: QUALITY, ACCURACY, TIMELINESS, AND/ OR COMPLETENESS OF THE BOFA
A23: MERRILL LYNCH INDICIES OR ANY DATA INCLUDED IN, RELATED TO, OR DERIVED
A24: THEREFROM, ASSUMES NO LIABILITY IN CONNECTION WITH THEIR USE, AND DOES
A25: NOT SPONSOR, ENDORSE, OR RECOMMEND, [FRBSL], OR ANY OF ITS PRODUCTS OR
A26: SERVICES.
A28: Copyright, 2014, Bank of America Corporation. Reprinted with
A29: permission.
A31: DATE VALUE
A32: 1996-12-31 13.97 | B32: 1996-12-31 | C32: 13.97
A33: 1997-01-02 13.95 | B33: 1997-01-02 | C33: 13.95
A34: 1997-01-03 14.02 | B34: 1997-01-03 | C34: 14.02
A35: 1997-01-06 14.03 | B35: 1997-01-06 | C35: 14.03
A36: 1997-01-07 14.05 | B36: 1997-01-07 | C36: 14.05
A37: 1997-01-08 14.06 | B37: 1997-01-08 | C37: 14.06
A38: 1997-01-09 14.10 | B38: 1997-01-09 | C38: 14.1
A39: 1997-01-10 14.11 | B39: 1997-01-10 | C39: 14.11
A40: 1997-01-13 14.15 | B40: 1997-01-13 | C40: 14.15
A41: 1997-01-14 14.03 | B41: 1997-01-14 | C41: 14.03
A42: 1997-01-15 13.96 | B42: 1997-01-15 | C42: 13.96
A43: 1997-01-16 13.92 | B43: 1997-01-16 | C43: 13.92
A44: 1997-01-17 13.93 | B44: 1997-01-17 | C44: 13.93
A45: 1997-01-20 13.87 | B45: 1997-01-20 | C45: 13.87
A46: 1997-01-21 13.87 | B46: 1997-01-21 | C46: 13.87
A47: 1997-01-22 13.83 | B47: 1997-01-22 | C47: 13.83
A48: 1997-01-23 13.88 | B48: 1997-01-23 | C48: 13.88
A49: 1997-01-24 13.84 | B49: 1997-01-24 | C49: 13.84
A50: 1997-01-27 13.80 | B50: 1997-01-27 | C50: 13.8
A51: 1997-01-28 13.69 | B51: 1997-01-28 | C51: 13.69
A52: 1997-01-29 13.83 | B52: 1997-01-29 | C52: 13.83
A53: 1997-01-30 13.86 | B53: 1997-01-30 | C53: 13.86
A54: 1997-01-31 13.94 | B54: 1997-01-31 | C54: 13.94
A55: 1997-02-03 13.86 | B55: 1997-02-03 | C55: 13.86
A56: 1997-02-04 13.81 | B56: 1997-02-04 | C56: 13.81
A57: 1997-02-05 13.79 | B57: 1997-02-05 | C57: 13.79
A58: 1997-02-06 13.77 | B58: 1997-02-06 | C58: 13.77
A59: 1997-02-07 13.71 | B59: 1997-02-07 | C59: 13.71
A60: 1997-02-10 13.64 | B60: 1997-02-10 | C60: 13.64
A61: 1997-02-11 13.63 | B61: 1997-02-11 | C61: 13.63
A62: 1997-02-12 13.59 | B62: 1997-02-12 | C62: 13.59
A63: 1997-02-13 13.58 | B63: 1997-02-13 | C63: 13.58
A64: 1997-02-14 13.53 | B64: 1997-02-14 | C64: 13.53
A65: 1997-02-18 13.48 | B65: 1997-02-18 | C65: 13.48
A66: 1997-02-19 13.45 | B66: 1997-02-19 | C66: 13.45
A67: 1997-02-20 13.39 | B67: 1997-02-20 | C67: 13.39
A68: 1997-02-21 13.41 | B68: 1997-02-21 | C68: 13.41
A69: 1997-02-24 13.37 | B69: 1997-02-24 | C69: 13.37
A70: 1997-02-25 13.23 | B70: 1997-02-25 | C70: 13.23
A71: 1997-02-26 13.22 | B71: 1997-02-26 | C71: 13.22
A72: 1997-02-27 13.21 | B72: 1997-02-27 | C72: 13.21
A73: 1997-02-28 13.27 | B73: 1997-02-28 | C73: 13.27
A74: 1997-03-03 13.32 | B74: 1997-03-03 | C74: 13.32
A75: 1997-03-04 13.12 | B75: 1997-03-04 | C75: 13.12
A76: 1997-03-05 13.30 | B76: 1997-03-05 | C76: 13.3
A77: 1997-03-06 13.29 | B77: 1997-03-06 | C77: 13.29
A78: 1997-03-07 13.30 | B78: 1997-03-07 | C78: 13.3
A79: 1997-03-10 13.33 | B79: 1997-03-10 | C79: 13.33
A80: 1997-03-11 13.33 | B80: 1997-03-11 | C80: 13.33
A81: 1997-03-12 13.30 | B81: 1997-03-12 | C81: 13.3
A82: 1997-03-13 13.33 | B82: 1997-03-13 | C82: 13.33
A83: 1997-03-14 13.37 | B83: 1997-03-14 | C83: 13.37
A84: 1997-03-17 13.31 | B84: 1997-03-17 | C84: 13.31
A85: 1997-03-18 13.34 | B85: 1997-03-18 | C85: 13.34
A86: 1997-03-19 13.27 | B86: 1997-03-19 | C86: 13.27
A87: 1997-03-20 13.28 | B87: 1997-03-20 | C87: 13.28
A88: 1997-03-21 13.29 | B88: 1997-03-21 | C88: 13.29
A89: 1997-03-24 13.30 | B89: 1997-03-24 | C89: 13.3
A90: 1997-03-25 13.32 | B90: 1997-03-25 | C90: 13.32
A91: 1997-03-26 13.38 | B91: 1997-03-26 | C91: 13.38
A92: 1997-03-27 13.44 | B92: 1997-03-27 | C92: 13.44
A93: 1997-03-31 13.69 | B93: 1997-03-31 | C93: 13.69
A94: 1997-04-01 13.73 | B94: 1997-04-01 | C94: 13.73
A95: 1997-04-02 13.78 | B95: 1997-04-02 | C95: 13.78
A96: 1997-04-03 13.81 | B96: 1997-04-03 | C96: 13.81
A97: 1997-04-04 13.78 | B97: 1997-04-04 | C97: 13.78
A98: 1997-04-07 13.76 | B98: 1997-04-07 | C98: 13.76
A99: 1997-04-08 13.77 | B99: 1997-04-08 | C99: 13.77
A100: 1997-04-09 13.79 | B100: 1997-04-09 | C100: 13.79
A101: 1997-04-10 13.84 | B101: 1997-04-10 | C101: 13.84
A102: 1997-04-11 13.94 | B102: 1997-04-11 | C102: 13.94
A103: 1997-04-14 13.90 | B103: 1997-04-14 | C103: 13.9
A104: 1997-04-15 13.72 | B104: 1997-04-15 | C104: 13.72
A105: 1997-04-16 13.66 | B105: 1997-04-16 | C105: 13.66
A106: 1997-04-17 13.69 | B106: 1997-04-17 | C106: 13.69
A107: 1997-04-18 13.64 | B107: 1997-04-18 | C107: 13.64
A108: 1997-04-21 13.58 | B108: 1997-04-21 | C108: 13.58
A109: 1997-04-22 13.54 | B109: 1997-04-22 | C109: 13.54
A110: 1997-04-23 13.53 | B110: 1997-04-23 | C110: 13.53
A111: 1997-04-24 13.52 | B111: 1997-04-24 | C111: 13.52
A112: 1997-04-25 13.52 | B112: 1997-04-25 | C112: 13.52
A113: 1997-04-28 13.64 | B113: 1997-04-28 | C113: 13.64
A114: 1997-04-29 13.58 | B114: 1997-04-29 | C114: 13.58
A115: 1997-04-30 13.78 | B115: 1997-04-30 | C115: 13.78
A116: 1997-05-01 13.76 | B116: 1997-05-01 | C116: 13.76
A117: 1997-05-02 13.73 | B117: 1997-05-02 | C117: 13.73
A118: 1997-05-05 13.71 | B118: 1997-05-05 | C118: 13.71
A119: 1997-05-06 13.71 | B119: 1997-05-06 | C119: 13.71
A120: 1997-05-07 13.70 | B120: 1997-05-07 | C120: 13.7
A121: 1997-05-08 13.65 | B121: 1997-05-08 | C121: 13.65
A122: 1997-05-09 13.58 | B122: 1997-05-09 | C122: 13.58
A123: 1997-05-12 13.55 | B123: 1997-05-12 | C123: 13.55
A124: 1997-05-13 13.56 | B124: 1997-05-13 | C124: 13.56
A125: 1997-05-14 13.50 | B125: 1997-05-14 | C125: 13.5
A126: 1997-05-15 13.44 | B126: 1997-05-15 | C126: 13.44
A127: 1997-05-16 13.43 | B127: 1997-05-16 | C127: 13.43
A128: 1997-05-19 13.44 | B128: 1997-05-19 | C128: 13.44
A129: 1997-05-20 13.42 | B129: 1997-05-20 | C129: 13.42
A130: 1997-05-21 13.41 | B130: 1997-05-21 | C130: 13.41
A131: 1997-05-22 13.37 | B131: 1997-05-22 | C131: 13.37
A132: 1997-05-23 13.37 | B132: 1997-05-23 | C132: 13.37
A133: 1997-05-27 13.39 | B133: 1997-05-27 | C133: 13.39
A134: 1997-05-28 13.46 | B134: 1997-05-28 | C134: 13.46
A135: 1997-05-29 13.36 | B135: 1997-05-29 | C135: 13.36
A136: 1997-05-30 13.31 | B136: 1997-05-30 | C136: 13.31
A137: 1997-05-31 13.34 | B137: 1997-05-31 | C137: 13.34
A138: 1997-06-02 13.31 | B138: 1997-06-02 | C138: 13.31
A139: 1997-06-03 13.28 | B139: 1997-06-03 | C139: 13.28
A140: 1997-06-04 13.20 | B140: 1997-06-04 | C140: 13.2
A141: 1997-06-05 13.17 | B141: 1997-06-05 | C141: 13.17
A142: 1997-06-06 13.06 | B142: 1997-06-06 | C142: 13.06
A143: 1997-06-09 12.95 | B143: 1997-06-09 | C143: 12.95
A144: 1997-06-10 12.92 | B144: 1997-06-10 | C144: 12.92
A145: 1997-06-11 12.90 | B145: 1997-06-11 | C145: 12.9
A146: 1997-06-12 12.93 | B146: 1997-06-12 | C146: 12.93
A147: 1997-06-13 12.93 | B147: 1997-06-13 | C147: 12.93
A148: 1997-06-16 12.83 | B148: 1997-06-16 | C148: 12.83
A149: 1997-06-17 12.84 | B149: 1997-06-17 | C149: 12.84
A150: 1997-06-18 12.87 | B150: 1997-06-18 | C150: 12.87
A151: 1997-06-19 12.89 | B151: 1997-06-19 | C151: 12.89
A152: 1997-06-20 12.92 | B152: 1997-06-20 | C152: 12.92
A153: 1997-06-23 12.96 | B153: 1997-06-23 | C153: 12.96
A154: 1997-06-24 12.96 | B154: 1997-06-24 | C154: 12.96
A155: 1997-06-25 12.96 | B155: 1997-06-25 | C155: 12.96
A156: 1997-06-26 13.10 | B156: 1997-06-26 | C156: 13.1
A157: 1997-06-27 13.06 | B157: 1997-06-27 | C157: 13.06
A158: 1997-06-30 13.29 | B158: 1997-06-30 | C158: 13.29
A159: 1997-07-01 13.26 | B159: 1997-07-01 | C159: 13.26
A160: 1997-07-02 13.27 | B160: 1997-07-02 | C160: 13.27
A161: 1997-07-03 13.28 | B161: 1997-07-03 | C161: 13.28
A162: 1997-07-07 13.25 | B162: 1997-07-07 | C162: 13.25
A163: 1997-07-08 13.21 | B163: 1997-07-08 | C163: 13.21
A164: 1997-07-09 13.13 | B164: 1997-07-09 | C164: 13.13
A165: 1997-07-10 13.12 | B165: 1997-07-10 | C165: 13.12
A166: 1997-07-11 13.11 | B166: 1997-07-11 | C166: 13.11
A167: 1997-07-14 13.10 | B167: 1997-07-14 | C167: 13.1
A168: 1997-07-15 13.07 | B168: 1997-07-15 | C168: 13.07
A169: 1997-07-16 13.04 | B169: 1997-07-16 | C169: 13.04
A170: 1997-07-17 13.01 | B170: 1997-07-17 | C170: 13.01
A171: 1997-07-18 13.03 | B171: 1997-07-18 | C171: 13.03
A172: 1997-07-21 13.11 | B172: 1997-07-21 | C172: 13.11
A173: 1997-07-22 13.09 | B173: 1997-07-22 | C173: 13.09
A174: 1997-07-23 13.06 | B174: 1997-07-23 | C174: 13.06
A175: 1997-07-24 13.05 | B175: 1997-07-24 | C175: 13.05
A176: 1997-07-25 13.07 | B176: 1997-07-25 | C176: 13.07
A177: 1997-07-28 13.06 | B177: 1997-07-28 | C177: 13.06
A178: 1997-07-29 13.12 | B178: 1997-07-29 | C178: 13.12
A179: 1997-07-30 13.10 | B179: 1997-07-30 | C179: 13.1
A180: 1997-07-31 12.70 | B180: 1997-07-31 | C180: 12.7
A181: 1997-08-01 12.70 | B181: 1997-08-01 | C181: 12.7
A182: 1997-08-04 12.73 | B182: 1997-08-04 | C182: 12.73
A183: 1997-08-05 12.73 | B183: 1997-08-05 | C183: 12.73
A184: 1997-08-06 12.66 | B184: 1997-08-06 | C184: 12.66
A185: 1997-08-07 12.62 | B185: 1997-08-07 | C185: 12.62
A186: 1997-08-08 12.73 | B186: 1997-08-08 | C186: 12.73
A187: 1997-08-11 12.73 | B187: 1997-08-11 | C187: 12.73
A188: 1997-08-12 12.72 | B188: 1997-08-12 | C188: 12.72
A189: 1997-08-13 12.71 | B189: 1997-08-13 | C189: 12.71
A190: 1997-08-14 12.62 | B190: 1997-08-14 | C190: 12.62
A191: 1997-08-15 12.59 | B191: 1997-08-15 | C191: 12.59
A192: 1997-08-18 12.62 | B192: 1997-08-18 | C192: 12.62
A193: 1997-08-19 12.63 | B193: 1997-08-19 | C193: 12.63
A194: 1997-08-20 12.61 | B194: 1997-08-20 | C194: 12.61
A195: 1997-08-21 12.60 | B195: 1997-08-21 | C195: 12.6
A196: 1997-08-22 12.71 | B196: 1997-08-22 | C196: 12.71
A197: 1997-08-25 12.69 | B197: 1997-08-25 | C197: 12.69
A198: 1997-08-26 12.70 | B198: 1997-08-26 | C198: 12.7
A199: 1997-08-27 12.69 | B199: 1997-08-27 | C199: 12.69
A200: 1997-08-28 12.57 | B200: 1997-08-28 | C200: 12.57
A201: 1997-08-29 12.59 | B201: 1997-08-29 | C201: 12.59
A202: 1997-08-31 12.60 | B202: 1997-08-31 | C202: 12.6
A203: 1997-09-02 12.51 | B203: 1997-09-02 | C203: 12.51
... 4858 more rows
